{"text_format":"3","workbook":"xlsx","n_sheets":4,"sheets":["Karaktersporing","Din præstation","Indstillinger","Beregninger"],"not_rendered":{"defined_names":3,"comments":1},"read":"whole","date_system":"1900"}

{"sheet":"Karaktersporing","index":0,"n_rows":14,"n_cols":6,"rows_kept":14}
[null,"Angiv dine karakterer her"]
[]
[null,null,"Klasse","Type","Beskrivelse","Karakter"]
[null,null,"Moderne fransk","Lektier","2. verdenskrig - historie",{"v":0.8,"d":"80%"}]
[null,null,"Avanceret programmering i Java","Terminsprøve",null,{"v":0.75,"d":"75%"}]
[null,null,"Spansk","Lektier",null,{"v":0.5,"d":"50%"}]
[null,null,"Teoretisk fysik","Lektier",null,{"v":0.95,"d":"95%"}]
[null,null,"Moderne fransk","Lektier","1. verdenskrig - historie",{"v":0.9,"d":"90%"}]
[null,null,"Moderne fransk","Lektier","Side 30-41",{"v":0.8,"d":"80%"}]
[null,null,"Komposition","Stil","Overbevisende opgave",{"v":0.95,"d":"95%"}]
[null,null,"Matematik 1","Lektier","Side 21 og 26",{"v":0.8,"d":"80%"}]
[null,null,"Matematik 2","Lektier","Side 15 og 18",{"v":0.85,"d":"85%"}]
[null,null,"Matematik 1","Lektier","Side 34-36",{"v":0.8,"d":"80%"}]
[null,null,"Matematik 2","Test",null,{"v":0.95,"d":"95%"}]

{"sheet":"Din præstation","index":1,"n_rows":31,"n_cols":8,"rows_kept":31}
[null,"Din præstation"]
[]
[null,null,"Totaler"]
[null,null,{"$f":"\"Timer: \"&SUM(tblKlasser[Kredittimer])","v":"Timer: 24"},{"$f":"AVERAGE(D7:D31)","v":{"v":0.8104761904761906,"d":"81%"}},{"$f":"AVERAGE(E7:E31)","v":{"v":2.7142857142857144,"d":"2.71"}},{"$f":"SUM(F7:F31)","v":{"v":2.625,"d":"2.63"}},{"$f":"IFERROR(HLOOKUP(D4,l._gennemsnitstilknytning,2),\"\")","v":"B-"}]
[]
[null,null,"Klasser","%","Karaktergennemsnit","Vægtet karaktergennemsnit","Bogstav","Overordnet præstation"]
[null,null,{"$f":"Beregninger!C6","v":"Moderne fransk"},{"$f":"Beregninger!AL6","v":{"v":0.8333333333333334,"d":"83%"}},{"$f":"Beregninger!AM6","v":{"v":3,"d":"3.00"}},{"$f":"IFERROR(E7*Indstillinger!D9/SUM(tblKlasser[Kredittimer]),\"\")","v":{"v":0.375,"d":"0.38"}},{"$f":"Beregninger!AN6","v":"B"}]
[null,null,{"$f":"Beregninger!C7","v":"Teoretisk fysik"},{"$f":"Beregninger!AL7","v":{"v":0.95,"d":"95%"}},{"$f":"Beregninger!AM7","v":{"v":4,"d":"4.00"}},{"$f":"IFERROR(E8*Indstillinger!D10/SUM(tblKlasser[Kredittimer]),\"\")","v":{"v":0.5,"d":"0.50"}},{"$f":"Beregninger!AN7","v":"A"}]
[null,null,{"$f":"Beregninger!C8","v":"Matematik 1"},{"$f":"Beregninger!AL8","v":{"v":0.8000000000000002,"d":"80%"}},{"$f":"Beregninger!AM8","v":2.67},{"$f":"IFERROR(E9*Indstillinger!D11/SUM(tblKlasser[Kredittimer]),\"\")","v":{"v":0.445,"d":"0.45"}},{"$f":"Beregninger!AN8","v":"B-"}]
[null,null,{"$f":"Beregninger!C9","v":"Matematik 2"},{"$f":"Beregninger!AL9","v":{"v":0.89,"d":"89%"}},{"$f":"Beregninger!AM9","v":3.33},{"$f":"IFERROR(E10*Indstillinger!D12/SUM(tblKlasser[Kredittimer]),\"\")","v":{"v":0.555,"d":"0.56"}},{"$f":"Beregninger!AN9","v":"B+"}]
[null,null,{"$f":"Beregninger!C10","v":"Avanceret programmering i Java"},{"$f":"Beregninger!AL10","v":{"v":0.7500000000000001,"d":"75%"}},{"$f":"Beregninger!AM10","v":{"v":2,"d":"2.00"}},{"$f":"IFERROR(E11*Indstillinger!D13/SUM(tblKlasser[Kredittimer]),\"\")","v":{"v":0.4166666666666667,"d":"0.42"}},{"$f":"Beregninger!AN10","v":"C"}]
[null,null,{"$f":"Beregninger!C11","v":"Spansk"},{"$f":"Beregninger!AL11","v":{"v":0.5,"d":"50%"}},{"$f":"Beregninger!AM11","v":{"v":0,"d":"0.00"}},{"$f":"IFERROR(E12*Indstillinger!D14/SUM(tblKlasser[Kredittimer]),\"\")","v":{"v":0,"d":"0.00"}},{"$f":"Beregninger!AN11","v":"F"}]
[null,null,{"$f":"Beregninger!C12","v":"Komposition"},{"$f":"Beregninger!AL12","v":{"v":0.95,"d":"95%"}},{"$f":"Beregninger!AM12","v":{"v":4,"d":"4.00"}},{"$f":"IFERROR(E13*Indstillinger!D15/SUM(tblKlasser[Kredittimer]),\"\")","v":{"v":0.3333333333333333,"d":"0.33"}},{"$f":"Beregninger!AN12","v":"A"}]
[null,null,{"$f":"Beregninger!C13","v":""},{"$f":"Beregninger!AL13","v":""},{"$f":"Beregninger!AM13","v":""},{"$f":"IFERROR(E14*Indstillinger!D16/SUM(tblKlasser[Kredittimer]),\"\")","v":""},{"$f":"Beregninger!AN13","v":""}]
[null,null,{"$f":"Beregninger!C14","v":""},{"$f":"Beregninger!AL14","v":""},{"$f":"Beregninger!AM14","v":""},{"$f":"IFERROR(E15*Indstillinger!D17/SUM(tblKlasser[Kredittimer]),\"\")","v":""},{"$f":"Beregninger!AN14","v":""}]
[null,null,{"$f":"Beregninger!C15","v":""},{"$f":"Beregninger!AL15","v":""},{"$f":"Beregninger!AM15","v":""},{"$f":"IFERROR(E16*Indstillinger!D18/SUM(tblKlasser[Kredittimer]),\"\")","v":""},{"$f":"Beregninger!AN15","v":""}]
[null,null,{"$f":"Beregninger!C16","v":""},{"$f":"Beregninger!AL16","v":""},{"$f":"Beregninger!AM16","v":""},{"$f":"IFERROR(E17*Indstillinger!D19/SUM(tblKlasser[Kredittimer]),\"\")","v":""},{"$f":"Beregninger!AN16","v":""}]
[null,null,{"$f":"Beregninger!C17","v":""},{"$f":"Beregninger!AL17","v":""},{"$f":"Beregninger!AM17","v":""},{"$f":"IFERROR(E18*Indstillinger!D20/SUM(tblKlasser[Kredittimer]),\"\")","v":""},{"$f":"Beregninger!AN17","v":""}]
[null,null,{"$f":"Beregninger!C18","v":""},{"$f":"Beregninger!AL18","v":""},{"$f":"Beregninger!AM18","v":""},{"$f":"IFERROR(E19*Indstillinger!D21/SUM(tblKlasser[Kredittimer]),\"\")","v":""},{"$f":"Beregninger!AN18","v":""}]
[null,null,{"$f":"Beregninger!C19","v":""},{"$f":"Beregninger!AL19","v":""},{"$f":"Beregninger!AM19","v":""},{"$f":"IFERROR(E20*Indstillinger!D22/SUM(tblKlasser[Kredittimer]),\"\")","v":""},{"$f":"Beregninger!AN19","v":""}]
[null,null,{"$f":"Beregninger!C20","v":""},{"$f":"Beregninger!AL20","v":""},{"$f":"Beregninger!AM20","v":""},{"$f":"IFERROR(E21*Indstillinger!D23/SUM(tblKlasser[Kredittimer]),\"\")","v":""},{"$f":"Beregninger!AN20","v":""}]
[null,null,{"$f":"Beregninger!C21","v":""},{"$f":"Beregninger!AL21","v":""},{"$f":"Beregninger!AM21","v":""},{"$f":"IFERROR(E22*Indstillinger!D24/SUM(tblKlasser[Kredittimer]),\"\")","v":""},{"$f":"Beregninger!AN21","v":""}]
[null,null,{"$f":"Beregninger!C22","v":""},{"$f":"Beregninger!AL22","v":""},{"$f":"Beregninger!AM22","v":""},{"$f":"IFERROR(E23*Indstillinger!D25/SUM(tblKlasser[Kredittimer]),\"\")","v":""},{"$f":"Beregninger!AN22","v":""}]
[null,null,{"$f":"Beregninger!C23","v":""},{"$f":"Beregninger!AL23","v":""},{"$f":"Beregninger!AM23","v":""},{"$f":"IFERROR(E24*Indstillinger!D26/SUM(tblKlasser[Kredittimer]),\"\")","v":""},{"$f":"Beregninger!AN23","v":""}]
[null,null,{"$f":"Beregninger!C24","v":""},{"$f":"Beregninger!AL24","v":""},{"$f":"Beregninger!AM24","v":""},{"$f":"IFERROR(E25*Indstillinger!D27/SUM(tblKlasser[Kredittimer]),\"\")","v":""},{"$f":"Beregninger!AN24","v":""}]
[null,null,{"$f":"Beregninger!C25","v":""},{"$f":"Beregninger!AL25","v":""},{"$f":"Beregninger!AM25","v":""},{"$f":"IFERROR(E26*Indstillinger!D28/SUM(tblKlasser[Kredittimer]),\"\")","v":""},{"$f":"Beregninger!AN25","v":""}]
[null,null,{"$f":"Beregninger!C26","v":""},{"$f":"Beregninger!AL26","v":""},{"$f":"Beregninger!AM26","v":""},{"$f":"IFERROR(E27*Indstillinger!D29/SUM(tblKlasser[Kredittimer]),\"\")","v":""},{"$f":"Beregninger!AN26","v":""}]
[null,null,{"$f":"Beregninger!C27","v":""},{"$f":"Beregninger!AL27","v":""},{"$f":"Beregninger!AM27","v":""},{"$f":"IFERROR(E28*Indstillinger!D30/SUM(tblKlasser[Kredittimer]),\"\")","v":""},{"$f":"Beregninger!AN27","v":""}]
[null,null,{"$f":"Beregninger!C28","v":""},{"$f":"Beregninger!AL28","v":""},{"$f":"Beregninger!AM28","v":""},{"$f":"IFERROR(E29*Indstillinger!D31/SUM(tblKlasser[Kredittimer]),\"\")","v":""},{"$f":"Beregninger!AN28","v":""}]
[null,null,{"$f":"Beregninger!C29","v":""},{"$f":"Beregninger!AL29","v":""},{"$f":"Beregninger!AM29","v":""},{"$f":"IFERROR(E30*Indstillinger!D32/SUM(tblKlasser[Kredittimer]),\"\")","v":""},{"$f":"Beregninger!AN29","v":""}]
[null,null,{"$f":"Beregninger!C30","v":""},{"$f":"Beregninger!AL30","v":""},{"$f":"Beregninger!AM30","v":""},{"$f":"IFERROR(E31*Indstillinger!D33/SUM(tblKlasser[Kredittimer]),\"\")","v":""},{"$f":"Beregninger!AN30","v":""}]

{"sheet":"Indstillinger","index":2,"n_rows":15,"n_cols":16,"rows_kept":15,"merged":[[5,2,5,15]]}
[null,"Indstillinger"]
[null,null,"Tilknytning mellem karakterer og karaktergennemsnit"]
[null,null,"Procent",{"v":0,"d":"0%"},{"v":0.6,"d":"60%"},{"v":0.63,"d":"63%"},{"v":0.67,"d":"67%"},{"v":0.7,"d":"70%"},{"v":0.73,"d":"73%"},{"v":0.77,"d":"77%"},{"v":0.8,"d":"80%"},{"v":0.83,"d":"83%"},{"v":0.87,"d":"87%"},{"v":0.9,"d":"90%"},{"v":0.93,"d":"93%"},{"v":0.97,"d":"97%"}]
[null,null,"Karakter (bogstav)","F","D-","D","D+","C-","C","C+","B-","B","B+","A-","A","A+"]
[null,null,"Karaktergennemsnit",0,0.67,1,1.33,1.67,2,2.33,2.67,3,3.33,3.67,4,4]
[]
[null,null,"Vægtede karakterer for op til 25 klasser"]
[null,null,"Lektioner, du tager","Kredittimer","Lektier","Stil","Test","Projekt","Terminsprøve","Endelig eksamen","Andet","% i alt"]
[null,null,"Moderne fransk",{"v":3,"d":"3.0"},{"v":0.1,"d":"10%"},{"v":0.15,"d":"15%"},{"v":0.15,"d":"15%"},{"v":0.1,"d":"10%"},{"v":0.2,"d":"20%"},{"v":0.3,"d":"30%"},null,{"$f":"SUM(tblKlasser[[#This Row],[Lektier]:[Andet]])","v":{"v":1,"d":"100%"}}]
[null,null,"Teoretisk fysik",{"v":3,"d":"3.0"},{"v":0.15,"d":"15%"},{"v":0.15,"d":"15%"},{"v":0.1,"d":"10%"},{"v":0.1,"d":"10%"},{"v":0.15,"d":"15%"},{"v":0.3,"d":"30%"},{"v":0.05,"d":"5%"},{"$f":"SUM(tblKlasser[[#This Row],[Lektier]:[Andet]])","v":{"v":1,"d":"100%"}}]
[null,null,"Matematik 1",{"v":4,"d":"4.0"},{"v":0.1,"d":"10%"},{"v":0.15,"d":"15%"},{"v":0.15,"d":"15%"},{"v":0.1,"d":"10%"},{"v":0.2,"d":"20%"},{"v":0.3,"d":"30%"},null,{"$f":"SUM(tblKlasser[[#This Row],[Lektier]:[Andet]])","v":{"v":1,"d":"100%"}}]
[null,null,"Matematik 2",{"v":4,"d":"4.0"},{"v":0.15,"d":"15%"},{"v":0.15,"d":"15%"},{"v":0.1,"d":"10%"},{"v":0.1,"d":"10%"},{"v":0.15,"d":"15%"},{"v":0.3,"d":"30%"},{"v":0.05,"d":"5%"},{"$f":"SUM(tblKlasser[[#This Row],[Lektier]:[Andet]])","v":{"v":1,"d":"100%"}}]
[null,null,"Avanceret programmering i Java",{"v":5,"d":"5.0"},{"v":0.15,"d":"15%"},{"v":0.15,"d":"15%"},{"v":0.1,"d":"10%"},{"v":0.1,"d":"10%"},{"v":0.2,"d":"20%"},{"v":0.3,"d":"30%"},null,{"$f":"SUM(tblKlasser[[#This Row],[Lektier]:[Andet]])","v":{"v":1,"d":"100%"}}]
[null,null,"Spansk",{"v":3,"d":"3.0"},{"v":0.1,"d":"10%"},{"v":0.15,"d":"15%"},{"v":0.17,"d":"17%"},{"v":0.13,"d":"13%"},{"v":0.2,"d":"20%"},{"v":0.2,"d":"20%"},{"v":0.05,"d":"5%"},{"$f":"SUM(tblKlasser[[#This Row],[Lektier]:[Andet]])","v":{"v":1,"d":"100%"}}]
[null,null,"Komposition",{"v":2,"d":"2.0"},{"v":0.15,"d":"15%"},{"v":0.15,"d":"15%"},{"v":0.12,"d":"12%"},{"v":0.15,"d":"15%"},{"v":0.15,"d":"15%"},{"v":0.25,"d":"25%"},{"v":0.03,"d":"3%"},{"$f":"SUM(tblKlasser[[#This Row],[Lektier]:[Andet]])","v":{"v":1,"d":"100%"}}]

{"sheet":"Beregninger","index":3,"n_rows":657,"n_cols":40,"rows_kept":657,"hidden":true}
[null,"Beregninger"]
[null,null,"Dette regneark indeholder beregninger for dine karakterer og karaktergennemsnit og skal forblive skjult. Eventuelle ændringer af dette ark kan medføre fejl."]
[]
[null,null,"Aktuel klasseliste","Karakterer (ud af 1)",{"$nulls":24},"Karakterberegning"]
[null,null,"Klasse",1,2,3,4,5,6,7,8,9,10,11,12,13,14,15,16,17,18,19,20,21,22,23,24,25,{"$f":"tblKlasser[[#Headers],[Lektier]]","v":"Lektier"},{"$f":"tblKlasser[[#Headers],[Stil]]","v":"Stil"},{"$f":"tblKlasser[[#Headers],[Test]]","v":"Test"},{"$f":"tblKlasser[[#Headers],[Projekt]]","v":"Projekt"},{"$f":"tblKlasser[[#Headers],[Terminsprøve]]","v":"Terminsprøve"},{"$f":"tblKlasser[[#Headers],[Endelig eksamen]]","v":"Endelig eksamen"},{"$f":"tblKlasser[[#Headers],[Andet]]","v":"Andet"},"I alt","Maksimalt antal point","Samlet %","Karakterpoint","Karakter (bogstav)"]
[null,null,{"$f":"IF(Indstillinger!C9=\"\",\"\",Indstillinger!C9)","v":"Moderne fransk"},{"$f":"IFERROR(INDEX(tblKlassekarakterer[],MATCH($C6:$C30&D$5:AB$5,Beregninger!$C$33:$C$657,0),4),\"\")","v":{"v":0.8,"d":"80%"}},{"v":0.9,"d":"90%"},{"v":0.8,"d":"80%"},"","","","","","","","","","","","","","","","","","","","","","",{"$f":"IFERROR(AVERAGEIFS(tblKlassekarakterer[Karakter],tblKlassekarakterer[Klasse],Beregninger!$C6,tblKlassekarakterer[Type],Beregninger!AC$5)*Indstillinger!E9,\"\")","v":0.08333333333333334},{"$f":"IFERROR(AVERAGEIFS(tblKlassekarakterer[Karakter],tblKlassekarakterer[Klasse],Beregninger!$C6,tblKlassekarakterer[Type],Beregninger!AD$5)*Indstillinger!F9,\"\")","v":""},{"$f":"IFERROR(AVERAGEIFS(tblKlassekarakterer[Karakter],tblKlassekarakterer[Klasse],Beregninger!$C6,tblKlassekarakterer[Type],Beregninger!AE$5)*Indstillinger!G9,\"\")","v":""},{"$f":"IFERROR(AVERAGEIFS(tblKlassekarakterer[Karakter],tblKlassekarakterer[Klasse],Beregninger!$C6,tblKlassekarakterer[Type],Beregninger!AF$5)*Indstillinger!H9,\"\")","v":""},{"$f":"IFERROR(AVERAGEIFS(tblKlassekarakterer[Karakter],tblKlassekarakterer[Klasse],Beregninger!$C6,tblKlassekarakterer[Type],Beregninger!AG$5)*Indstillinger!I9,\"\")","v":""},{"$f":"IFERROR(AVERAGEIFS(tblKlassekarakterer[Karakter],tblKlassekarakterer[Klasse],Beregninger!$C6,tblKlassekarakterer[Type],Beregninger!AH$5)*Indstillinger!J9,\"\")","v":""},{"$f":"IFERROR(AVERAGEIFS(tblKlassekarakterer[Karakter],tblKlassekarakterer[Klasse],Beregninger!$C6,tblKlassekarakterer[Type],Beregninger!AI$5)*Indstillinger!K9,\"\")","v":""},{"$f":"SUM(AC6:AI6)","v":0.08333333333333334},{"$f":"SUMIFS(Indstillinger!E9:K9,Beregninger!AC6:AI6,\">0\")","v":0.1},{"$f":"IFERROR(AJ6/AK6,\"\")","v":{"v":0.8333333333333334,"d":"83%"}},{"$f":"IFERROR(HLOOKUP(AL6,l._gennemsnitstilknytning,3),\"\")","v":3},{"$f":"IFERROR(HLOOKUP(AL6,l._gennemsnitstilknytning,2),\"\")","v":"B"}]
[null,null,{"$f":"IF(Indstillinger!C10=\"\",\"\",Indstillinger!C10)","v":"Teoretisk fysik"},{"v":0.95,"d":"95%"},"","","","","","","","","","","","","","","","","","","","","","","","",{"$f":"IFERROR(AVERAGEIFS(tblKlassekarakterer[Karakter],tblKlassekarakterer[Klasse],Beregninger!$C7,tblKlassekarakterer[Type],Beregninger!AC$5)*Indstillinger!E10,\"\")","v":0.1425},{"$f":"IFERROR(AVERAGEIFS(tblKlassekarakterer[Karakter],tblKlassekarakterer[Klasse],Beregninger!$C7,tblKlassekarakterer[Type],Beregninger!AD$5)*Indstillinger!F10,\"\")","v":""},{"$f":"IFERROR(AVERAGEIFS(tblKlassekarakterer[Karakter],tblKlassekarakterer[Klasse],Beregninger!$C7,tblKlassekarakterer[Type],Beregninger!AE$5)*Indstillinger!G10,\"\")","v":""},{"$f":"IFERROR(AVERAGEIFS(tblKlassekarakterer[Karakter],tblKlassekarakterer[Klasse],Beregninger!$C7,tblKlassekarakterer[Type],Beregninger!AF$5)*Indstillinger!H10,\"\")","v":""},{"$f":"IFERROR(AVERAGEIFS(tblKlassekarakterer[Karakter],tblKlassekarakterer[Klasse],Beregninger!$C7,tblKlassekarakterer[Type],Beregninger!AG$5)*Indstillinger!I10,\"\")","v":""},{"$f":"IFERROR(AVERAGEIFS(tblKlassekarakterer[Karakter],tblKlassekarakterer[Klasse],Beregninger!$C7,tblKlassekarakterer[Type],Beregninger!AH$5)*Indstillinger!J10,\"\")","v":""},{"$f":"IFERROR(AVERAGEIFS(tblKlassekarakterer[Karakter],tblKlassekarakterer[Klasse],Beregninger!$C7,tblKlassekarakterer[Type],Beregninger!AI$5)*Indstillinger!K10,\"\")","v":""},{"$f":"SUM(AC7:AI7)","v":0.1425},{"$f":"SUMIFS(Indstillinger!E10:K10,Beregninger!AC7:AI7,\">0\")","v":0.15},{"$f":"IFERROR(AJ7/AK7,\"\")","v":{"v":0.95,"d":"95%"}},4,"A"]
[null,null,{"$f":"IF(Indstillinger!C11=\"\",\"\",Indstillinger!C11)","v":"Matematik 1"},{"v":0.8,"d":"80%"},{"v":0.8,"d":"80%"},"","","","","","","","","","","","","","","","","","","","","","","",{"$f":"IFERROR(AVERAGEIFS(tblKlassekarakterer[Karakter],tblKlassekarakterer[Klasse],Beregninger!$C8,tblKlassekarakterer[Type],Beregninger!AC$5)*Indstillinger!E11,\"\")","v":0.08000000000000002},{"$f":"IFERROR(AVERAGEIFS(tblKlassekarakterer[Karakter],tblKlassekarakterer[Klasse],Beregninger!$C8,tblKlassekarakterer[Type],Beregninger!AD$5)*Indstillinger!F11,\"\")","v":""},{"$f":"IFERROR(AVERAGEIFS(tblKlassekarakterer[Karakter],tblKlassekarakterer[Klasse],Beregninger!$C8,tblKlassekarakterer[Type],Beregninger!AE$5)*Indstillinger!G11,\"\")","v":""},{"$f":"IFERROR(AVERAGEIFS(tblKlassekarakterer[Karakter],tblKlassekarakterer[Klasse],Beregninger!$C8,tblKlassekarakterer[Type],Beregninger!AF$5)*Indstillinger!H11,\"\")","v":""},{"$f":"IFERROR(AVERAGEIFS(tblKlassekarakterer[Karakter],tblKlassekarakterer[Klasse],Beregninger!$C8,tblKlassekarakterer[Type],Beregninger!AG$5)*Indstillinger!I11,\"\")","v":""},{"$f":"IFERROR(AVERAGEIFS(tblKlassekarakterer[Karakter],tblKlassekarakterer[Klasse],Beregninger!$C8,tblKlassekarakterer[Type],Beregninger!AH$5)*Indstillinger!J11,\"\")","v":""},{"$f":"IFERROR(AVERAGEIFS(tblKlassekarakterer[Karakter],tblKlassekarakterer[Klasse],Beregninger!$C8,tblKlassekarakterer[Type],Beregninger!AI$5)*Indstillinger!K11,\"\")","v":""},0.08000000000000002,{"$f":"SUMIFS(Indstillinger!E11:K11,Beregninger!AC8:AI8,\">0\")","v":0.1},{"v":0.8000000000000002,"d":"80%"},2.67,"B-"]
[null,null,{"$f":"IF(Indstillinger!C12=\"\",\"\",Indstillinger!C12)","v":"Matematik 2"},{"v":0.85,"d":"85%"},{"v":0.95,"d":"95%"},"","","","","","","","","","","","","","","","","","","","","","","",{"$f":"IFERROR(AVERAGEIFS(tblKlassekarakterer[Karakter],tblKlassekarakterer[Klasse],Beregninger!$C9,tblKlassekarakterer[Type],Beregninger!AC$5)*Indstillinger!E12,\"\")","v":0.1275},{"$f":"IFERROR(AVERAGEIFS(tblKlassekarakterer[Karakter],tblKlassekarakterer[Klasse],Beregninger!$C9,tblKlassekarakterer[Type],Beregninger!AD$5)*Indstillinger!F12,\"\")","v":""},{"$f":"IFERROR(AVERAGEIFS(tblKlassekarakterer[Karakter],tblKlassekarakterer[Klasse],Beregninger!$C9,tblKlassekarakterer[Type],Beregninger!AE$5)*Indstillinger!G12,\"\")","v":0.095},{"$f":"IFERROR(AVERAGEIFS(tblKlassekarakterer[Karakter],tblKlassekarakterer[Klasse],Beregninger!$C9,tblKlassekarakterer[Type],Beregninger!AF$5)*Indstillinger!H12,\"\")","v":""},{"$f":"IFERROR(AVERAGEIFS(tblKlassekarakterer[Karakter],tblKlassekarakterer[Klasse],Beregninger!$C9,tblKlassekarakterer[Type],Beregninger!AG$5)*Indstillinger!I12,\"\")","v":""},{"$f":"IFERROR(AVERAGEIFS(tblKlassekarakterer[Karakter],tblKlassekarakterer[Klasse],Beregninger!$C9,tblKlassekarakterer[Type],Beregninger!AH$5)*Indstillinger!J12,\"\")","v":""},{"$f":"IFERROR(AVERAGEIFS(tblKlassekarakterer[Karakter],tblKlassekarakterer[Klasse],Beregninger!$C9,tblKlassekarakterer[Type],Beregninger!AI$5)*Indstillinger!K12,\"\")","v":""},0.2225,{"$f":"SUMIFS(Indstillinger!E12:K12,Beregninger!AC9:AI9,\">0\")","v":0.25},{"v":0.89,"d":"89%"},3.33,"B+"]
[null,null,{"$f":"IF(Indstillinger!C13=\"\",\"\",Indstillinger!C13)","v":"Avanceret programmering i Java"},{"v":0.75,"d":"75%"},"","","","","","","","","","","","","","","","","","","","","","","","",{"$f":"IFERROR(AVERAGEIFS(tblKlassekarakterer[Karakter],tblKlassekarakterer[Klasse],Beregninger!$C10,tblKlassekarakterer[Type],Beregninger!AC$5)*Indstillinger!E13,\"\")","v":""},{"$f":"IFERROR(AVERAGEIFS(tblKlassekarakterer[Karakter],tblKlassekarakterer[Klasse],Beregninger!$C10,tblKlassekarakterer[Type],Beregninger!AD$5)*Indstillinger!F13,\"\")","v":""},{"$f":"IFERROR(AVERAGEIFS(tblKlassekarakterer[Karakter],tblKlassekarakterer[Klasse],Beregninger!$C10,tblKlassekarakterer[Type],Beregninger!AE$5)*Indstillinger!G13,\"\")","v":""},{"$f":"IFERROR(AVERAGEIFS(tblKlassekarakterer[Karakter],tblKlassekarakterer[Klasse],Beregninger!$C10,tblKlassekarakterer[Type],Beregninger!AF$5)*Indstillinger!H13,\"\")","v":""},{"$f":"IFERROR(AVERAGEIFS(tblKlassekarakterer[Karakter],tblKlassekarakterer[Klasse],Beregninger!$C10,tblKlassekarakterer[Type],Beregninger!AG$5)*Indstillinger!I13,\"\")","v":0.15000000000000002},{"$f":"IFERROR(AVERAGEIFS(tblKlassekarakterer[Karakter],tblKlassekarakterer[Klasse],Beregninger!$C10,tblKlassekarakterer[Type],Beregninger!AH$5)*Indstillinger!J13,\"\")","v":""},{"$f":"IFERROR(AVERAGEIFS(tblKlassekarakterer[Karakter],tblKlassekarakterer[Klasse],Beregninger!$C10,tblKlassekarakterer[Type],Beregninger!AI$5)*Indstillinger!K13,\"\")","v":""},0.15000000000000002,{"$f":"SUMIFS(Indstillinger!E13:K13,Beregninger!AC10:AI10,\">0\")","v":0.2},{"v":0.7500000000000001,"d":"75%"},2,"C"]
[null,null,{"$f":"IF(Indstillinger!C14=\"\",\"\",Indstillinger!C14)","v":"Spansk"},{"v":0.5,"d":"50%"},"","","","","","","","","","","","","","","","","","","","","","","","",{"$f":"IFERROR(AVERAGEIFS(tblKlassekarakterer[Karakter],tblKlassekarakterer[Klasse],Beregninger!$C11,tblKlassekarakterer[Type],Beregninger!AC$5)*Indstillinger!E14,\"\")","v":0.05},{"$f":"IFERROR(AVERAGEIFS(tblKlassekarakterer[Karakter],tblKlassekarakterer[Klasse],Beregninger!$C11,tblKlassekarakterer[Type],Beregninger!AD$5)*Indstillinger!F14,\"\")","v":""},{"$f":"IFERROR(AVERAGEIFS(tblKlassekarakterer[Karakter],tblKlassekarakterer[Klasse],Beregninger!$C11,tblKlassekarakterer[Type],Beregninger!AE$5)*Indstillinger!G14,\"\")","v":""},{"$f":"IFERROR(AVERAGEIFS(tblKlassekarakterer[Karakter],tblKlassekarakterer[Klasse],Beregninger!$C11,tblKlassekarakterer[Type],Beregninger!AF$5)*Indstillinger!H14,\"\")","v":""},{"$f":"IFERROR(AVERAGEIFS(tblKlassekarakterer[Karakter],tblKlassekarakterer[Klasse],Beregninger!$C11,tblKlassekarakterer[Type],Beregninger!AG$5)*Indstillinger!I14,\"\")","v":""},{"$f":"IFERROR(AVERAGEIFS(tblKlassekarakterer[Karakter],tblKlassekarakterer[Klasse],Beregninger!$C11,tblKlassekarakterer[Type],Beregninger!AH$5)*Indstillinger!J14,\"\")","v":""},{"$f":"IFERROR(AVERAGEIFS(tblKlassekarakterer[Karakter],tblKlassekarakterer[Klasse],Beregninger!$C11,tblKlassekarakterer[Type],Beregninger!AI$5)*Indstillinger!K14,\"\")","v":""},0.05,{"$f":"SUMIFS(Indstillinger!E14:K14,Beregninger!AC11:AI11,\">0\")","v":0.1},{"v":0.5,"d":"50%"},0,"F"]
[null,null,{"$f":"IF(Indstillinger!C15=\"\",\"\",Indstillinger!C15)","v":"Komposition"},{"v":0.95,"d":"95%"},"","","","","","","","","","","","","","","","","","","","","","","","",{"$f":"IFERROR(AVERAGEIFS(tblKlassekarakterer[Karakter],tblKlassekarakterer[Klasse],Beregninger!$C12,tblKlassekarakterer[Type],Beregninger!AC$5)*Indstillinger!E15,\"\")","v":""},{"$f":"IFERROR(AVERAGEIFS(tblKlassekarakterer[Karakter],tblKlassekarakterer[Klasse],Beregninger!$C12,tblKlassekarakterer[Type],Beregninger!AD$5)*Indstillinger!F15,\"\")","v":0.1425},{"$f":"IFERROR(AVERAGEIFS(tblKlassekarakterer[Karakter],tblKlassekarakterer[Klasse],Beregninger!$C12,tblKlassekarakterer[Type],Beregninger!AE$5)*Indstillinger!G15,\"\")","v":""},{"$f":"IFERROR(AVERAGEIFS(tblKlassekarakterer[Karakter],tblKlassekarakterer[Klasse],Beregninger!$C12,tblKlassekarakterer[Type],Beregninger!AF$5)*Indstillinger!H15,\"\")","v":""},{"$f":"IFERROR(AVERAGEIFS(tblKlassekarakterer[Karakter],tblKlassekarakterer[Klasse],Beregninger!$C12,tblKlassekarakterer[Type],Beregninger!AG$5)*Indstillinger!I15,\"\")","v":""},{"$f":"IFERROR(AVERAGEIFS(tblKlassekarakterer[Karakter],tblKlassekarakterer[Klasse],Beregninger!$C12,tblKlassekarakterer[Type],Beregninger!AH$5)*Indstillinger!J15,\"\")","v":""},{"$f":"IFERROR(AVERAGEIFS(tblKlassekarakterer[Karakter],tblKlassekarakterer[Klasse],Beregninger!$C12,tblKlassekarakterer[Type],Beregninger!AI$5)*Indstillinger!K15,\"\")","v":""},0.1425,{"$f":"SUMIFS(Indstillinger!E15:K15,Beregninger!AC12:AI12,\">0\")","v":0.15},{"v":0.95,"d":"95%"},4,"A"]
[null,null,{"$f":"IF(Indstillinger!C16=\"\",\"\",Indstillinger!C16)","v":""},"","","","","","","","","","","","","","","","","","","","","","","","","",{"$f":"IFERROR(AVERAGEIFS(tblKlassekarakterer[Karakter],tblKlassekarakterer[Klasse],Beregninger!$C13,tblKlassekarakterer[Type],Beregninger!AC$5)*Indstillinger!E16,\"\")","v":""},{"$f":"IFERROR(AVERAGEIFS(tblKlassekarakterer[Karakter],tblKlassekarakterer[Klasse],Beregninger!$C13,tblKlassekarakterer[Type],Beregninger!AD$5)*Indstillinger!F16,\"\")","v":""},{"$f":"IFERROR(AVERAGEIFS(tblKlassekarakterer[Karakter],tblKlassekarakterer[Klasse],Beregninger!$C13,tblKlassekarakterer[Type],Beregninger!AE$5)*Indstillinger!G16,\"\")","v":""},{"$f":"IFERROR(AVERAGEIFS(tblKlassekarakterer[Karakter],tblKlassekarakterer[Klasse],Beregninger!$C13,tblKlassekarakterer[Type],Beregninger!AF$5)*Indstillinger!H16,\"\")","v":""},{"$f":"IFERROR(AVERAGEIFS(tblKlassekarakterer[Karakter],tblKlassekarakterer[Klasse],Beregninger!$C13,tblKlassekarakterer[Type],Beregninger!AG$5)*Indstillinger!I16,\"\")","v":""},{"$f":"IFERROR(AVERAGEIFS(tblKlassekarakterer[Karakter],tblKlassekarakterer[Klasse],Beregninger!$C13,tblKlassekarakterer[Type],Beregninger!AH$5)*Indstillinger!J16,\"\")","v":""},{"$f":"IFERROR(AVERAGEIFS(tblKlassekarakterer[Karakter],tblKlassekarakterer[Klasse],Beregninger!$C13,tblKlassekarakterer[Type],Beregninger!AI$5)*Indstillinger!K16,\"\")","v":""},0,{"$f":"SUMIFS(Indstillinger!E16:K16,Beregninger!AC13:AI13,\">0\")","v":0},"","",""]
[null,null,{"$f":"IF(Indstillinger!C17=\"\",\"\",Indstillinger!C17)","v":""},"","","","","","","","","","","","","","","","","","","","","","","","","",{"$f":"IFERROR(AVERAGEIFS(tblKlassekarakterer[Karakter],tblKlassekarakterer[Klasse],Beregninger!$C14,tblKlassekarakterer[Type],Beregninger!AC$5)*Indstillinger!E17,\"\")","v":""},{"$f":"IFERROR(AVERAGEIFS(tblKlassekarakterer[Karakter],tblKlassekarakterer[Klasse],Beregninger!$C14,tblKlassekarakterer[Type],Beregninger!AD$5)*Indstillinger!F17,\"\")","v":""},{"$f":"IFERROR(AVERAGEIFS(tblKlassekarakterer[Karakter],tblKlassekarakterer[Klasse],Beregninger!$C14,tblKlassekarakterer[Type],Beregninger!AE$5)*Indstillinger!G17,\"\")","v":""},{"$f":"IFERROR(AVERAGEIFS(tblKlassekarakterer[Karakter],tblKlassekarakterer[Klasse],Beregninger!$C14,tblKlassekarakterer[Type],Beregninger!AF$5)*Indstillinger!H17,\"\")","v":""},{"$f":"IFERROR(AVERAGEIFS(tblKlassekarakterer[Karakter],tblKlassekarakterer[Klasse],Beregninger!$C14,tblKlassekarakterer[Type],Beregninger!AG$5)*Indstillinger!I17,\"\")","v":""},{"$f":"IFERROR(AVERAGEIFS(tblKlassekarakterer[Karakter],tblKlassekarakterer[Klasse],Beregninger!$C14,tblKlassekarakterer[Type],Beregninger!AH$5)*Indstillinger!J17,\"\")","v":""},{"$f":"IFERROR(AVERAGEIFS(tblKlassekarakterer[Karakter],tblKlassekarakterer[Klasse],Beregninger!$C14,tblKlassekarakterer[Type],Beregninger!AI$5)*Indstillinger!K17,\"\")","v":""},0,{"$f":"SUMIFS(Indstillinger!E17:K17,Beregninger!AC14:AI14,\">0\")","v":0},"","",""]
[null,null,{"$f":"IF(Indstillinger!C18=\"\",\"\",Indstillinger!C18)","v":""},"","","","","","","","","","","","","","","","","","","","","","","","","",{"$f":"IFERROR(AVERAGEIFS(tblKlassekarakterer[Karakter],tblKlassekarakterer[Klasse],Beregninger!$C15,tblKlassekarakterer[Type],Beregninger!AC$5)*Indstillinger!E18,\"\")","v":""},{"$f":"IFERROR(AVERAGEIFS(tblKlassekarakterer[Karakter],tblKlassekarakterer[Klasse],Beregninger!$C15,tblKlassekarakterer[Type],Beregninger!AD$5)*Indstillinger!F18,\"\")","v":""},{"$f":"IFERROR(AVERAGEIFS(tblKlassekarakterer[Karakter],tblKlassekarakterer[Klasse],Beregninger!$C15,tblKlassekarakterer[Type],Beregninger!AE$5)*Indstillinger!G18,\"\")","v":""},{"$f":"IFERROR(AVERAGEIFS(tblKlassekarakterer[Karakter],tblKlassekarakterer[Klasse],Beregninger!$C15,tblKlassekarakterer[Type],Beregninger!AF$5)*Indstillinger!H18,\"\")","v":""},{"$f":"IFERROR(AVERAGEIFS(tblKlassekarakterer[Karakter],tblKlassekarakterer[Klasse],Beregninger!$C15,tblKlassekarakterer[Type],Beregninger!AG$5)*Indstillinger!I18,\"\")","v":""},{"$f":"IFERROR(AVERAGEIFS(tblKlassekarakterer[Karakter],tblKlassekarakterer[Klasse],Beregninger!$C15,tblKlassekarakterer[Type],Beregninger!AH$5)*Indstillinger!J18,\"\")","v":""},{"$f":"IFERROR(AVERAGEIFS(tblKlassekarakterer[Karakter],tblKlassekarakterer[Klasse],Beregninger!$C15,tblKlassekarakterer[Type],Beregninger!AI$5)*Indstillinger!K18,\"\")","v":""},0,{"$f":"SUMIFS(Indstillinger!E18:K18,Beregninger!AC15:AI15,\">0\")","v":0},"","",""]
[null,null,{"$f":"IF(Indstillinger!C19=\"\",\"\",Indstillinger!C19)","v":""},"","","","","","","","","","","","","","","","","","","","","","","","","",{"$f":"IFERROR(AVERAGEIFS(tblKlassekarakterer[Karakter],tblKlassekarakterer[Klasse],Beregninger!$C16,tblKlassekarakterer[Type],Beregninger!AC$5)*Indstillinger!E19,\"\")","v":""},{"$f":"IFERROR(AVERAGEIFS(tblKlassekarakterer[Karakter],tblKlassekarakterer[Klasse],Beregninger!$C16,tblKlassekarakterer[Type],Beregninger!AD$5)*Indstillinger!F19,\"\")","v":""},{"$f":"IFERROR(AVERAGEIFS(tblKlassekarakterer[Karakter],tblKlassekarakterer[Klasse],Beregninger!$C16,tblKlassekarakterer[Type],Beregninger!AE$5)*Indstillinger!G19,\"\")","v":""},{"$f":"IFERROR(AVERAGEIFS(tblKlassekarakterer[Karakter],tblKlassekarakterer[Klasse],Beregninger!$C16,tblKlassekarakterer[Type],Beregninger!AF$5)*Indstillinger!H19,\"\")","v":""},{"$f":"IFERROR(AVERAGEIFS(tblKlassekarakterer[Karakter],tblKlassekarakterer[Klasse],Beregninger!$C16,tblKlassekarakterer[Type],Beregninger!AG$5)*Indstillinger!I19,\"\")","v":""},{"$f":"IFERROR(AVERAGEIFS(tblKlassekarakterer[Karakter],tblKlassekarakterer[Klasse],Beregninger!$C16,tblKlassekarakterer[Type],Beregninger!AH$5)*Indstillinger!J19,\"\")","v":""},{"$f":"IFERROR(AVERAGEIFS(tblKlassekarakterer[Karakter],tblKlassekarakterer[Klasse],Beregninger!$C16,tblKlassekarakterer[Type],Beregninger!AI$5)*Indstillinger!K19,\"\")","v":""},0,{"$f":"SUMIFS(Indstillinger!E19:K19,Beregninger!AC16:AI16,\">0\")","v":0},"","",""]
[null,null,{"$f":"IF(Indstillinger!C20=\"\",\"\",Indstillinger!C20)","v":""},"","","","","","","","","","","","","","","","","","","","","","","","","",{"$f":"IFERROR(AVERAGEIFS(tblKlassekarakterer[Karakter],tblKlassekarakterer[Klasse],Beregninger!$C17,tblKlassekarakterer[Type],Beregninger!AC$5)*Indstillinger!E20,\"\")","v":""},{"$f":"IFERROR(AVERAGEIFS(tblKlassekarakterer[Karakter],tblKlassekarakterer[Klasse],Beregninger!$C17,tblKlassekarakterer[Type],Beregninger!AD$5)*Indstillinger!F20,\"\")","v":""},{"$f":"IFERROR(AVERAGEIFS(tblKlassekarakterer[Karakter],tblKlassekarakterer[Klasse],Beregninger!$C17,tblKlassekarakterer[Type],Beregninger!AE$5)*Indstillinger!G20,\"\")","v":""},{"$f":"IFERROR(AVERAGEIFS(tblKlassekarakterer[Karakter],tblKlassekarakterer[Klasse],Beregninger!$C17,tblKlassekarakterer[Type],Beregninger!AF$5)*Indstillinger!H20,\"\")","v":""},{"$f":"IFERROR(AVERAGEIFS(tblKlassekarakterer[Karakter],tblKlassekarakterer[Klasse],Beregninger!$C17,tblKlassekarakterer[Type],Beregninger!AG$5)*Indstillinger!I20,\"\")","v":""},{"$f":"IFERROR(AVERAGEIFS(tblKlassekarakterer[Karakter],tblKlassekarakterer[Klasse],Beregninger!$C17,tblKlassekarakterer[Type],Beregninger!AH$5)*Indstillinger!J20,\"\")","v":""},{"$f":"IFERROR(AVERAGEIFS(tblKlassekarakterer[Karakter],tblKlassekarakterer[Klasse],Beregninger!$C17,tblKlassekarakterer[Type],Beregninger!AI$5)*Indstillinger!K20,\"\")","v":""},0,{"$f":"SUMIFS(Indstillinger!E20:K20,Beregninger!AC17:AI17,\">0\")","v":0},"","",""]
[null,null,{"$f":"IF(Indstillinger!C21=\"\",\"\",Indstillinger!C21)","v":""},"","","","","","","","","","","","","","","","","","","","","","","","","",{"$f":"IFERROR(AVERAGEIFS(tblKlassekarakterer[Karakter],tblKlassekarakterer[Klasse],Beregninger!$C18,tblKlassekarakterer[Type],Beregninger!AC$5)*Indstillinger!E21,\"\")","v":""},{"$f":"IFERROR(AVERAGEIFS(tblKlassekarakterer[Karakter],tblKlassekarakterer[Klasse],Beregninger!$C18,tblKlassekarakterer[Type],Beregninger!AD$5)*Indstillinger!F21,\"\")","v":""},{"$f":"IFERROR(AVERAGEIFS(tblKlassekarakterer[Karakter],tblKlassekarakterer[Klasse],Beregninger!$C18,tblKlassekarakterer[Type],Beregninger!AE$5)*Indstillinger!G21,\"\")","v":""},{"$f":"IFERROR(AVERAGEIFS(tblKlassekarakterer[Karakter],tblKlassekarakterer[Klasse],Beregninger!$C18,tblKlassekarakterer[Type],Beregninger!AF$5)*Indstillinger!H21,\"\")","v":""},{"$f":"IFERROR(AVERAGEIFS(tblKlassekarakterer[Karakter],tblKlassekarakterer[Klasse],Beregninger!$C18,tblKlassekarakterer[Type],Beregninger!AG$5)*Indstillinger!I21,\"\")","v":""},{"$f":"IFERROR(AVERAGEIFS(tblKlassekarakterer[Karakter],tblKlassekarakterer[Klasse],Beregninger!$C18,tblKlassekarakterer[Type],Beregninger!AH$5)*Indstillinger!J21,\"\")","v":""},{"$f":"IFERROR(AVERAGEIFS(tblKlassekarakterer[Karakter],tblKlassekarakterer[Klasse],Beregninger!$C18,tblKlassekarakterer[Type],Beregninger!AI$5)*Indstillinger!K21,\"\")","v":""},0,{"$f":"SUMIFS(Indstillinger!E21:K21,Beregninger!AC18:AI18,\">0\")","v":0},"","",""]
[null,null,{"$f":"IF(Indstillinger!C22=\"\",\"\",Indstillinger!C22)","v":""},"","","","","","","","","","","","","","","","","","","","","","","","","",{"$f":"IFERROR(AVERAGEIFS(tblKlassekarakterer[Karakter],tblKlassekarakterer[Klasse],Beregninger!$C19,tblKlassekarakterer[Type],Beregninger!AC$5)*Indstillinger!E22,\"\")","v":""},{"$f":"IFERROR(AVERAGEIFS(tblKlassekarakterer[Karakter],tblKlassekarakterer[Klasse],Beregninger!$C19,tblKlassekarakterer[Type],Beregninger!AD$5)*Indstillinger!F22,\"\")","v":""},{"$f":"IFERROR(AVERAGEIFS(tblKlassekarakterer[Karakter],tblKlassekarakterer[Klasse],Beregninger!$C19,tblKlassekarakterer[Type],Beregninger!AE$5)*Indstillinger!G22,\"\")","v":""},{"$f":"IFERROR(AVERAGEIFS(tblKlassekarakterer[Karakter],tblKlassekarakterer[Klasse],Beregninger!$C19,tblKlassekarakterer[Type],Beregninger!AF$5)*Indstillinger!H22,\"\")","v":""},{"$f":"IFERROR(AVERAGEIFS(tblKlassekarakterer[Karakter],tblKlassekarakterer[Klasse],Beregninger!$C19,tblKlassekarakterer[Type],Beregninger!AG$5)*Indstillinger!I22,\"\")","v":""},{"$f":"IFERROR(AVERAGEIFS(tblKlassekarakterer[Karakter],tblKlassekarakterer[Klasse],Beregninger!$C19,tblKlassekarakterer[Type],Beregninger!AH$5)*Indstillinger!J22,\"\")","v":""},{"$f":"IFERROR(AVERAGEIFS(tblKlassekarakterer[Karakter],tblKlassekarakterer[Klasse],Beregninger!$C19,tblKlassekarakterer[Type],Beregninger!AI$5)*Indstillinger!K22,\"\")","v":""},0,{"$f":"SUMIFS(Indstillinger!E22:K22,Beregninger!AC19:AI19,\">0\")","v":0},"","",""]
[null,null,{"$f":"IF(Indstillinger!C23=\"\",\"\",Indstillinger!C23)","v":""},"","","","","","","","","","","","","","","","","","","","","","","","","",{"$f":"IFERROR(AVERAGEIFS(tblKlassekarakterer[Karakter],tblKlassekarakterer[Klasse],Beregninger!$C20,tblKlassekarakterer[Type],Beregninger!AC$5)*Indstillinger!E23,\"\")","v":""},{"$f":"IFERROR(AVERAGEIFS(tblKlassekarakterer[Karakter],tblKlassekarakterer[Klasse],Beregninger!$C20,tblKlassekarakterer[Type],Beregninger!AD$5)*Indstillinger!F23,\"\")","v":""},{"$f":"IFERROR(AVERAGEIFS(tblKlassekarakterer[Karakter],tblKlassekarakterer[Klasse],Beregninger!$C20,tblKlassekarakterer[Type],Beregninger!AE$5)*Indstillinger!G23,\"\")","v":""},{"$f":"IFERROR(AVERAGEIFS(tblKlassekarakterer[Karakter],tblKlassekarakterer[Klasse],Beregninger!$C20,tblKlassekarakterer[Type],Beregninger!AF$5)*Indstillinger!H23,\"\")","v":""},{"$f":"IFERROR(AVERAGEIFS(tblKlassekarakterer[Karakter],tblKlassekarakterer[Klasse],Beregninger!$C20,tblKlassekarakterer[Type],Beregninger!AG$5)*Indstillinger!I23,\"\")","v":""},{"$f":"IFERROR(AVERAGEIFS(tblKlassekarakterer[Karakter],tblKlassekarakterer[Klasse],Beregninger!$C20,tblKlassekarakterer[Type],Beregninger!AH$5)*Indstillinger!J23,\"\")","v":""},{"$f":"IFERROR(AVERAGEIFS(tblKlassekarakterer[Karakter],tblKlassekarakterer[Klasse],Beregninger!$C20,tblKlassekarakterer[Type],Beregninger!AI$5)*Indstillinger!K23,\"\")","v":""},0,{"$f":"SUMIFS(Indstillinger!E23:K23,Beregninger!AC20:AI20,\">0\")","v":0},"","",""]
[null,null,{"$f":"IF(Indstillinger!C24=\"\",\"\",Indstillinger!C24)","v":""},"","","","","","","","","","","","","","","","","","","","","","","","","",{"$f":"IFERROR(AVERAGEIFS(tblKlassekarakterer[Karakter],tblKlassekarakterer[Klasse],Beregninger!$C21,tblKlassekarakterer[Type],Beregninger!AC$5)*Indstillinger!E24,\"\")","v":""},{"$f":"IFERROR(AVERAGEIFS(tblKlassekarakterer[Karakter],tblKlassekarakterer[Klasse],Beregninger!$C21,tblKlassekarakterer[Type],Beregninger!AD$5)*Indstillinger!F24,\"\")","v":""},{"$f":"IFERROR(AVERAGEIFS(tblKlassekarakterer[Karakter],tblKlassekarakterer[Klasse],Beregninger!$C21,tblKlassekarakterer[Type],Beregninger!AE$5)*Indstillinger!G24,\"\")","v":""},{"$f":"IFERROR(AVERAGEIFS(tblKlassekarakterer[Karakter],tblKlassekarakterer[Klasse],Beregninger!$C21,tblKlassekarakterer[Type],Beregninger!AF$5)*Indstillinger!H24,\"\")","v":""},{"$f":"IFERROR(AVERAGEIFS(tblKlassekarakterer[Karakter],tblKlassekarakterer[Klasse],Beregninger!$C21,tblKlassekarakterer[Type],Beregninger!AG$5)*Indstillinger!I24,\"\")","v":""},{"$f":"IFERROR(AVERAGEIFS(tblKlassekarakterer[Karakter],tblKlassekarakterer[Klasse],Beregninger!$C21,tblKlassekarakterer[Type],Beregninger!AH$5)*Indstillinger!J24,\"\")","v":""},{"$f":"IFERROR(AVERAGEIFS(tblKlassekarakterer[Karakter],tblKlassekarakterer[Klasse],Beregninger!$C21,tblKlassekarakterer[Type],Beregninger!AI$5)*Indstillinger!K24,\"\")","v":""},0,{"$f":"SUMIFS(Indstillinger!E24:K24,Beregninger!AC21:AI21,\">0\")","v":0},"","",""]
[null,null,{"$f":"IF(Indstillinger!C25=\"\",\"\",Indstillinger!C25)","v":""},"","","","","","","","","","","","","","","","","","","","","","","","","",{"$f":"IFERROR(AVERAGEIFS(tblKlassekarakterer[Karakter],tblKlassekarakterer[Klasse],Beregninger!$C22,tblKlassekarakterer[Type],Beregninger!AC$5)*Indstillinger!E25,\"\")","v":""},{"$f":"IFERROR(AVERAGEIFS(tblKlassekarakterer[Karakter],tblKlassekarakterer[Klasse],Beregninger!$C22,tblKlassekarakterer[Type],Beregninger!AD$5)*Indstillinger!F25,\"\")","v":""},{"$f":"IFERROR(AVERAGEIFS(tblKlassekarakterer[Karakter],tblKlassekarakterer[Klasse],Beregninger!$C22,tblKlassekarakterer[Type],Beregninger!AE$5)*Indstillinger!G25,\"\")","v":""},{"$f":"IFERROR(AVERAGEIFS(tblKlassekarakterer[Karakter],tblKlassekarakterer[Klasse],Beregninger!$C22,tblKlassekarakterer[Type],Beregninger!AF$5)*Indstillinger!H25,\"\")","v":""},{"$f":"IFERROR(AVERAGEIFS(tblKlassekarakterer[Karakter],tblKlassekarakterer[Klasse],Beregninger!$C22,tblKlassekarakterer[Type],Beregninger!AG$5)*Indstillinger!I25,\"\")","v":""},{"$f":"IFERROR(AVERAGEIFS(tblKlassekarakterer[Karakter],tblKlassekarakterer[Klasse],Beregninger!$C22,tblKlassekarakterer[Type],Beregninger!AH$5)*Indstillinger!J25,\"\")","v":""},{"$f":"IFERROR(AVERAGEIFS(tblKlassekarakterer[Karakter],tblKlassekarakterer[Klasse],Beregninger!$C22,tblKlassekarakterer[Type],Beregninger!AI$5)*Indstillinger!K25,\"\")","v":""},0,{"$f":"SUMIFS(Indstillinger!E25:K25,Beregninger!AC22:AI22,\">0\")","v":0},"","",""]
[null,null,{"$f":"IF(Indstillinger!C26=\"\",\"\",Indstillinger!C26)","v":""},"","","","","","","","","","","","","","","","","","","","","","","","","",{"$f":"IFERROR(AVERAGEIFS(tblKlassekarakterer[Karakter],tblKlassekarakterer[Klasse],Beregninger!$C23,tblKlassekarakterer[Type],Beregninger!AC$5)*Indstillinger!E26,\"\")","v":""},{"$f":"IFERROR(AVERAGEIFS(tblKlassekarakterer[Karakter],tblKlassekarakterer[Klasse],Beregninger!$C23,tblKlassekarakterer[Type],Beregninger!AD$5)*Indstillinger!F26,\"\")","v":""},{"$f":"IFERROR(AVERAGEIFS(tblKlassekarakterer[Karakter],tblKlassekarakterer[Klasse],Beregninger!$C23,tblKlassekarakterer[Type],Beregninger!AE$5)*Indstillinger!G26,\"\")","v":""},{"$f":"IFERROR(AVERAGEIFS(tblKlassekarakterer[Karakter],tblKlassekarakterer[Klasse],Beregninger!$C23,tblKlassekarakterer[Type],Beregninger!AF$5)*Indstillinger!H26,\"\")","v":""},{"$f":"IFERROR(AVERAGEIFS(tblKlassekarakterer[Karakter],tblKlassekarakterer[Klasse],Beregninger!$C23,tblKlassekarakterer[Type],Beregninger!AG$5)*Indstillinger!I26,\"\")","v":""},{"$f":"IFERROR(AVERAGEIFS(tblKlassekarakterer[Karakter],tblKlassekarakterer[Klasse],Beregninger!$C23,tblKlassekarakterer[Type],Beregninger!AH$5)*Indstillinger!J26,\"\")","v":""},{"$f":"IFERROR(AVERAGEIFS(tblKlassekarakterer[Karakter],tblKlassekarakterer[Klasse],Beregninger!$C23,tblKlassekarakterer[Type],Beregninger!AI$5)*Indstillinger!K26,\"\")","v":""},0,{"$f":"SUMIFS(Indstillinger!E26:K26,Beregninger!AC23:AI23,\">0\")","v":0},"","",""]
[null,null,{"$f":"IF(Indstillinger!C27=\"\",\"\",Indstillinger!C27)","v":""},"","","","","","","","","","","","","","","","","","","","","","","","","",{"$f":"IFERROR(AVERAGEIFS(tblKlassekarakterer[Karakter],tblKlassekarakterer[Klasse],Beregninger!$C24,tblKlassekarakterer[Type],Beregninger!AC$5)*Indstillinger!E27,\"\")","v":""},{"$f":"IFERROR(AVERAGEIFS(tblKlassekarakterer[Karakter],tblKlassekarakterer[Klasse],Beregninger!$C24,tblKlassekarakterer[Type],Beregninger!AD$5)*Indstillinger!F27,\"\")","v":""},{"$f":"IFERROR(AVERAGEIFS(tblKlassekarakterer[Karakter],tblKlassekarakterer[Klasse],Beregninger!$C24,tblKlassekarakterer[Type],Beregninger!AE$5)*Indstillinger!G27,\"\")","v":""},{"$f":"IFERROR(AVERAGEIFS(tblKlassekarakterer[Karakter],tblKlassekarakterer[Klasse],Beregninger!$C24,tblKlassekarakterer[Type],Beregninger!AF$5)*Indstillinger!H27,\"\")","v":""},{"$f":"IFERROR(AVERAGEIFS(tblKlassekarakterer[Karakter],tblKlassekarakterer[Klasse],Beregninger!$C24,tblKlassekarakterer[Type],Beregninger!AG$5)*Indstillinger!I27,\"\")","v":""},{"$f":"IFERROR(AVERAGEIFS(tblKlassekarakterer[Karakter],tblKlassekarakterer[Klasse],Beregninger!$C24,tblKlassekarakterer[Type],Beregninger!AH$5)*Indstillinger!J27,\"\")","v":""},{"$f":"IFERROR(AVERAGEIFS(tblKlassekarakterer[Karakter],tblKlassekarakterer[Klasse],Beregninger!$C24,tblKlassekarakterer[Type],Beregninger!AI$5)*Indstillinger!K27,\"\")","v":""},0,{"$f":"SUMIFS(Indstillinger!E27:K27,Beregninger!AC24:AI24,\">0\")","v":0},"","",""]
[null,null,{"$f":"IF(Indstillinger!C28=\"\",\"\",Indstillinger!C28)","v":""},"","","","","","","","","","","","","","","","","","","","","","","","","",{"$f":"IFERROR(AVERAGEIFS(tblKlassekarakterer[Karakter],tblKlassekarakterer[Klasse],Beregninger!$C25,tblKlassekarakterer[Type],Beregninger!AC$5)*Indstillinger!E28,\"\")","v":""},{"$f":"IFERROR(AVERAGEIFS(tblKlassekarakterer[Karakter],tblKlassekarakterer[Klasse],Beregninger!$C25,tblKlassekarakterer[Type],Beregninger!AD$5)*Indstillinger!F28,\"\")","v":""},{"$f":"IFERROR(AVERAGEIFS(tblKlassekarakterer[Karakter],tblKlassekarakterer[Klasse],Beregninger!$C25,tblKlassekarakterer[Type],Beregninger!AE$5)*Indstillinger!G28,\"\")","v":""},{"$f":"IFERROR(AVERAGEIFS(tblKlassekarakterer[Karakter],tblKlassekarakterer[Klasse],Beregninger!$C25,tblKlassekarakterer[Type],Beregninger!AF$5)*Indstillinger!H28,\"\")","v":""},{"$f":"IFERROR(AVERAGEIFS(tblKlassekarakterer[Karakter],tblKlassekarakterer[Klasse],Beregninger!$C25,tblKlassekarakterer[Type],Beregninger!AG$5)*Indstillinger!I28,\"\")","v":""},{"$f":"IFERROR(AVERAGEIFS(tblKlassekarakterer[Karakter],tblKlassekarakterer[Klasse],Beregninger!$C25,tblKlassekarakterer[Type],Beregninger!AH$5)*Indstillinger!J28,\"\")","v":""},{"$f":"IFERROR(AVERAGEIFS(tblKlassekarakterer[Karakter],tblKlassekarakterer[Klasse],Beregninger!$C25,tblKlassekarakterer[Type],Beregninger!AI$5)*Indstillinger!K28,\"\")","v":""},0,{"$f":"SUMIFS(Indstillinger!E28:K28,Beregninger!AC25:AI25,\">0\")","v":0},"","",""]
[null,null,{"$f":"IF(Indstillinger!C29=\"\",\"\",Indstillinger!C29)","v":""},"","","","","","","","","","","","","","","","","","","","","","","","","",{"$f":"IFERROR(AVERAGEIFS(tblKlassekarakterer[Karakter],tblKlassekarakterer[Klasse],Beregninger!$C26,tblKlassekarakterer[Type],Beregninger!AC$5)*Indstillinger!E29,\"\")","v":""},{"$f":"IFERROR(AVERAGEIFS(tblKlassekarakterer[Karakter],tblKlassekarakterer[Klasse],Beregninger!$C26,tblKlassekarakterer[Type],Beregninger!AD$5)*Indstillinger!F29,\"\")","v":""},{"$f":"IFERROR(AVERAGEIFS(tblKlassekarakterer[Karakter],tblKlassekarakterer[Klasse],Beregninger!$C26,tblKlassekarakterer[Type],Beregninger!AE$5)*Indstillinger!G29,\"\")","v":""},{"$f":"IFERROR(AVERAGEIFS(tblKlassekarakterer[Karakter],tblKlassekarakterer[Klasse],Beregninger!$C26,tblKlassekarakterer[Type],Beregninger!AF$5)*Indstillinger!H29,\"\")","v":""},{"$f":"IFERROR(AVERAGEIFS(tblKlassekarakterer[Karakter],tblKlassekarakterer[Klasse],Beregninger!$C26,tblKlassekarakterer[Type],Beregninger!AG$5)*Indstillinger!I29,\"\")","v":""},{"$f":"IFERROR(AVERAGEIFS(tblKlassekarakterer[Karakter],tblKlassekarakterer[Klasse],Beregninger!$C26,tblKlassekarakterer[Type],Beregninger!AH$5)*Indstillinger!J29,\"\")","v":""},{"$f":"IFERROR(AVERAGEIFS(tblKlassekarakterer[Karakter],tblKlassekarakterer[Klasse],Beregninger!$C26,tblKlassekarakterer[Type],Beregninger!AI$5)*Indstillinger!K29,\"\")","v":""},0,{"$f":"SUMIFS(Indstillinger!E29:K29,Beregninger!AC26:AI26,\">0\")","v":0},"","",""]
[null,null,{"$f":"IF(Indstillinger!C30=\"\",\"\",Indstillinger!C30)","v":""},"","","","","","","","","","","","","","","","","","","","","","","","","",{"$f":"IFERROR(AVERAGEIFS(tblKlassekarakterer[Karakter],tblKlassekarakterer[Klasse],Beregninger!$C27,tblKlassekarakterer[Type],Beregninger!AC$5)*Indstillinger!E30,\"\")","v":""},{"$f":"IFERROR(AVERAGEIFS(tblKlassekarakterer[Karakter],tblKlassekarakterer[Klasse],Beregninger!$C27,tblKlassekarakterer[Type],Beregninger!AD$5)*Indstillinger!F30,\"\")","v":""},{"$f":"IFERROR(AVERAGEIFS(tblKlassekarakterer[Karakter],tblKlassekarakterer[Klasse],Beregninger!$C27,tblKlassekarakterer[Type],Beregninger!AE$5)*Indstillinger!G30,\"\")","v":""},{"$f":"IFERROR(AVERAGEIFS(tblKlassekarakterer[Karakter],tblKlassekarakterer[Klasse],Beregninger!$C27,tblKlassekarakterer[Type],Beregninger!AF$5)*Indstillinger!H30,\"\")","v":""},{"$f":"IFERROR(AVERAGEIFS(tblKlassekarakterer[Karakter],tblKlassekarakterer[Klasse],Beregninger!$C27,tblKlassekarakterer[Type],Beregninger!AG$5)*Indstillinger!I30,\"\")","v":""},{"$f":"IFERROR(AVERAGEIFS(tblKlassekarakterer[Karakter],tblKlassekarakterer[Klasse],Beregninger!$C27,tblKlassekarakterer[Type],Beregninger!AH$5)*Indstillinger!J30,\"\")","v":""},{"$f":"IFERROR(AVERAGEIFS(tblKlassekarakterer[Karakter],tblKlassekarakterer[Klasse],Beregninger!$C27,tblKlassekarakterer[Type],Beregninger!AI$5)*Indstillinger!K30,\"\")","v":""},0,{"$f":"SUMIFS(Indstillinger!E30:K30,Beregninger!AC27:AI27,\">0\")","v":0},"","",""]
[null,null,{"$f":"IF(Indstillinger!C31=\"\",\"\",Indstillinger!C31)","v":""},"","","","","","","","","","","","","","","","","","","","","","","","","",{"$f":"IFERROR(AVERAGEIFS(tblKlassekarakterer[Karakter],tblKlassekarakterer[Klasse],Beregninger!$C28,tblKlassekarakterer[Type],Beregninger!AC$5)*Indstillinger!E31,\"\")","v":""},{"$f":"IFERROR(AVERAGEIFS(tblKlassekarakterer[Karakter],tblKlassekarakterer[Klasse],Beregninger!$C28,tblKlassekarakterer[Type],Beregninger!AD$5)*Indstillinger!F31,\"\")","v":""},{"$f":"IFERROR(AVERAGEIFS(tblKlassekarakterer[Karakter],tblKlassekarakterer[Klasse],Beregninger!$C28,tblKlassekarakterer[Type],Beregninger!AE$5)*Indstillinger!G31,\"\")","v":""},{"$f":"IFERROR(AVERAGEIFS(tblKlassekarakterer[Karakter],tblKlassekarakterer[Klasse],Beregninger!$C28,tblKlassekarakterer[Type],Beregninger!AF$5)*Indstillinger!H31,\"\")","v":""},{"$f":"IFERROR(AVERAGEIFS(tblKlassekarakterer[Karakter],tblKlassekarakterer[Klasse],Beregninger!$C28,tblKlassekarakterer[Type],Beregninger!AG$5)*Indstillinger!I31,\"\")","v":""},{"$f":"IFERROR(AVERAGEIFS(tblKlassekarakterer[Karakter],tblKlassekarakterer[Klasse],Beregninger!$C28,tblKlassekarakterer[Type],Beregninger!AH$5)*Indstillinger!J31,\"\")","v":""},{"$f":"IFERROR(AVERAGEIFS(tblKlassekarakterer[Karakter],tblKlassekarakterer[Klasse],Beregninger!$C28,tblKlassekarakterer[Type],Beregninger!AI$5)*Indstillinger!K31,\"\")","v":""},0,{"$f":"SUMIFS(Indstillinger!E31:K31,Beregninger!AC28:AI28,\">0\")","v":0},"","",""]
[null,null,{"$f":"IF(Indstillinger!C32=\"\",\"\",Indstillinger!C32)","v":""},"","","","","","","","","","","","","","","","","","","","","","","","","",{"$f":"IFERROR(AVERAGEIFS(tblKlassekarakterer[Karakter],tblKlassekarakterer[Klasse],Beregninger!$C29,tblKlassekarakterer[Type],Beregninger!AC$5)*Indstillinger!E32,\"\")","v":""},{"$f":"IFERROR(AVERAGEIFS(tblKlassekarakterer[Karakter],tblKlassekarakterer[Klasse],Beregninger!$C29,tblKlassekarakterer[Type],Beregninger!AD$5)*Indstillinger!F32,\"\")","v":""},{"$f":"IFERROR(AVERAGEIFS(tblKlassekarakterer[Karakter],tblKlassekarakterer[Klasse],Beregninger!$C29,tblKlassekarakterer[Type],Beregninger!AE$5)*Indstillinger!G32,\"\")","v":""},{"$f":"IFERROR(AVERAGEIFS(tblKlassekarakterer[Karakter],tblKlassekarakterer[Klasse],Beregninger!$C29,tblKlassekarakterer[Type],Beregninger!AF$5)*Indstillinger!H32,\"\")","v":""},{"$f":"IFERROR(AVERAGEIFS(tblKlassekarakterer[Karakter],tblKlassekarakterer[Klasse],Beregninger!$C29,tblKlassekarakterer[Type],Beregninger!AG$5)*Indstillinger!I32,\"\")","v":""},{"$f":"IFERROR(AVERAGEIFS(tblKlassekarakterer[Karakter],tblKlassekarakterer[Klasse],Beregninger!$C29,tblKlassekarakterer[Type],Beregninger!AH$5)*Indstillinger!J32,\"\")","v":""},{"$f":"IFERROR(AVERAGEIFS(tblKlassekarakterer[Karakter],tblKlassekarakterer[Klasse],Beregninger!$C29,tblKlassekarakterer[Type],Beregninger!AI$5)*Indstillinger!K32,\"\")","v":""},0,{"$f":"SUMIFS(Indstillinger!E32:K32,Beregninger!AC29:AI29,\">0\")","v":0},"","",""]
[null,null,{"$f":"IF(Indstillinger!C33=\"\",\"\",Indstillinger!C33)","v":""},"","","","","","","","","","","","","","","","","","","","","","","","","",{"$f":"IFERROR(AVERAGEIFS(tblKlassekarakterer[Karakter],tblKlassekarakterer[Klasse],Beregninger!$C30,tblKlassekarakterer[Type],Beregninger!AC$5)*Indstillinger!E33,\"\")","v":""},{"$f":"IFERROR(AVERAGEIFS(tblKlassekarakterer[Karakter],tblKlassekarakterer[Klasse],Beregninger!$C30,tblKlassekarakterer[Type],Beregninger!AD$5)*Indstillinger!F33,\"\")","v":""},{"$f":"IFERROR(AVERAGEIFS(tblKlassekarakterer[Karakter],tblKlassekarakterer[Klasse],Beregninger!$C30,tblKlassekarakterer[Type],Beregninger!AE$5)*Indstillinger!G33,\"\")","v":""},{"$f":"IFERROR(AVERAGEIFS(tblKlassekarakterer[Karakter],tblKlassekarakterer[Klasse],Beregninger!$C30,tblKlassekarakterer[Type],Beregninger!AF$5)*Indstillinger!H33,\"\")","v":""},{"$f":"IFERROR(AVERAGEIFS(tblKlassekarakterer[Karakter],tblKlassekarakterer[Klasse],Beregninger!$C30,tblKlassekarakterer[Type],Beregninger!AG$5)*Indstillinger!I33,\"\")","v":""},{"$f":"IFERROR(AVERAGEIFS(tblKlassekarakterer[Karakter],tblKlassekarakterer[Klasse],Beregninger!$C30,tblKlassekarakterer[Type],Beregninger!AH$5)*Indstillinger!J33,\"\")","v":""},{"$f":"IFERROR(AVERAGEIFS(tblKlassekarakterer[Karakter],tblKlassekarakterer[Klasse],Beregninger!$C30,tblKlassekarakterer[Type],Beregninger!AI$5)*Indstillinger!K33,\"\")","v":""},0,{"$f":"SUMIFS(Indstillinger!E33:K33,Beregninger!AC30:AI30,\">0\")","v":0},"","",""]
[]
[]
[null,1,{"$f":"Karaktersporing!C4&COUNTIF(Karaktersporing!$C$4:C4,Karaktersporing!C4)","v":"Moderne fransk1"}]
[null,2,{"$f":"Karaktersporing!C5&COUNTIF(Karaktersporing!$C$4:C5,Karaktersporing!C5)","v":"Avanceret programmering i Java1"}]
[null,3,{"$f":"Karaktersporing!C6&COUNTIF(Karaktersporing!$C$4:C6,Karaktersporing!C6)","v":"Spansk1"}]
[null,4,{"$f":"Karaktersporing!C7&COUNTIF(Karaktersporing!$C$4:C7,Karaktersporing!C7)","v":"Teoretisk fysik1"}]
[null,5,{"$f":"Karaktersporing!C8&COUNTIF(Karaktersporing!$C$4:C8,Karaktersporing!C8)","v":"Moderne fransk2"}]
[null,6,{"$f":"Karaktersporing!C9&COUNTIF(Karaktersporing!$C$4:C9,Karaktersporing!C9)","v":"Moderne fransk3"}]
[null,7,{"$f":"Karaktersporing!C10&COUNTIF(Karaktersporing!$C$4:C10,Karaktersporing!C10)","v":"Komposition1"}]
[null,8,{"$f":"Karaktersporing!C11&COUNTIF(Karaktersporing!$C$4:C11,Karaktersporing!C11)","v":"Matematik 11"}]
[null,9,{"$f":"Karaktersporing!C12&COUNTIF(Karaktersporing!$C$4:C12,Karaktersporing!C12)","v":"Matematik 21"}]
[null,10,{"$f":"Karaktersporing!C13&COUNTIF(Karaktersporing!$C$4:C14,Karaktersporing!C13)","v":"Matematik 12"}]
[null,11,{"$f":"Karaktersporing!C14&COUNTIF(Karaktersporing!$C$4:C14,Karaktersporing!C14)","v":"Matematik 22"}]
[null,12,{"$f":"Karaktersporing!C15&COUNTIF(Karaktersporing!$C$4:C15,Karaktersporing!C15)","v":"0"}]
[null,13,{"$f":"Karaktersporing!C16&COUNTIF(Karaktersporing!$C$4:C16,Karaktersporing!C16)","v":"0"}]
[null,14,{"$f":"Karaktersporing!C17&COUNTIF(Karaktersporing!$C$4:C17,Karaktersporing!C17)","v":"0"}]
[null,15,{"$f":"Karaktersporing!C18&COUNTIF(Karaktersporing!$C$4:C18,Karaktersporing!C18)","v":"0"}]
[null,16,{"$f":"Karaktersporing!C19&COUNTIF(Karaktersporing!$C$4:C19,Karaktersporing!C19)","v":"0"}]
[null,17,{"$f":"Karaktersporing!C20&COUNTIF(Karaktersporing!$C$4:C20,Karaktersporing!C20)","v":"0"}]
[null,18,{"$f":"Karaktersporing!C21&COUNTIF(Karaktersporing!$C$4:C21,Karaktersporing!C21)","v":"0"}]
[null,19,{"$f":"Karaktersporing!C22&COUNTIF(Karaktersporing!$C$4:C22,Karaktersporing!C22)","v":"0"}]
[null,20,{"$f":"Karaktersporing!C23&COUNTIF(Karaktersporing!$C$4:C23,Karaktersporing!C23)","v":"0"}]
[null,21,{"$f":"Karaktersporing!C24&COUNTIF(Karaktersporing!$C$4:C24,Karaktersporing!C24)","v":"0"}]
[null,22,{"$f":"Karaktersporing!C25&COUNTIF(Karaktersporing!$C$4:C25,Karaktersporing!C25)","v":"0"}]
[null,23,{"$f":"Karaktersporing!C26&COUNTIF(Karaktersporing!$C$4:C26,Karaktersporing!C26)","v":"0"}]
[null,24,{"$f":"Karaktersporing!C27&COUNTIF(Karaktersporing!$C$4:C27,Karaktersporing!C27)","v":"0"}]
[null,25,{"$f":"Karaktersporing!C28&COUNTIF(Karaktersporing!$C$4:C28,Karaktersporing!C28)","v":"0"}]
[null,26,{"$f":"Karaktersporing!C29&COUNTIF(Karaktersporing!$C$4:C29,Karaktersporing!C29)","v":"0"}]
[null,27,{"$f":"Karaktersporing!C30&COUNTIF(Karaktersporing!$C$4:C30,Karaktersporing!C30)","v":"0"}]
[null,28,{"$f":"Karaktersporing!C31&COUNTIF(Karaktersporing!$C$4:C31,Karaktersporing!C31)","v":"0"}]
[null,29,{"$f":"Karaktersporing!C32&COUNTIF(Karaktersporing!$C$4:C32,Karaktersporing!C32)","v":"0"}]
[null,30,{"$f":"Karaktersporing!C33&COUNTIF(Karaktersporing!$C$4:C33,Karaktersporing!C33)","v":"0"}]
[null,31,{"$f":"Karaktersporing!C34&COUNTIF(Karaktersporing!$C$4:C34,Karaktersporing!C34)","v":"0"}]
[null,32,{"$f":"Karaktersporing!C35&COUNTIF(Karaktersporing!$C$4:C35,Karaktersporing!C35)","v":"0"}]
[null,33,{"$f":"Karaktersporing!C36&COUNTIF(Karaktersporing!$C$4:C36,Karaktersporing!C36)","v":"0"}]
[null,34,{"$f":"Karaktersporing!C37&COUNTIF(Karaktersporing!$C$4:C37,Karaktersporing!C37)","v":"0"}]
[null,35,{"$f":"Karaktersporing!C38&COUNTIF(Karaktersporing!$C$4:C38,Karaktersporing!C38)","v":"0"}]
[null,36,{"$f":"Karaktersporing!C39&COUNTIF(Karaktersporing!$C$4:C39,Karaktersporing!C39)","v":"0"}]
[null,37,{"$f":"Karaktersporing!C40&COUNTIF(Karaktersporing!$C$4:C40,Karaktersporing!C40)","v":"0"}]
[null,38,{"$f":"Karaktersporing!C41&COUNTIF(Karaktersporing!$C$4:C41,Karaktersporing!C41)","v":"0"}]
[null,39,{"$f":"Karaktersporing!C42&COUNTIF(Karaktersporing!$C$4:C42,Karaktersporing!C42)","v":"0"}]
[null,40,{"$f":"Karaktersporing!C43&COUNTIF(Karaktersporing!$C$4:C43,Karaktersporing!C43)","v":"0"}]
[null,41,{"$f":"Karaktersporing!C44&COUNTIF(Karaktersporing!$C$4:C44,Karaktersporing!C44)","v":"0"}]
[null,42,{"$f":"Karaktersporing!C45&COUNTIF(Karaktersporing!$C$4:C45,Karaktersporing!C45)","v":"0"}]
[null,43,{"$f":"Karaktersporing!C46&COUNTIF(Karaktersporing!$C$4:C46,Karaktersporing!C46)","v":"0"}]
[null,44,{"$f":"Karaktersporing!C47&COUNTIF(Karaktersporing!$C$4:C47,Karaktersporing!C47)","v":"0"}]
[null,45,{"$f":"Karaktersporing!C48&COUNTIF(Karaktersporing!$C$4:C48,Karaktersporing!C48)","v":"0"}]
[null,46,{"$f":"Karaktersporing!C49&COUNTIF(Karaktersporing!$C$4:C49,Karaktersporing!C49)","v":"0"}]
[null,47,{"$f":"Karaktersporing!C50&COUNTIF(Karaktersporing!$C$4:C50,Karaktersporing!C50)","v":"0"}]
[null,48,{"$f":"Karaktersporing!C51&COUNTIF(Karaktersporing!$C$4:C51,Karaktersporing!C51)","v":"0"}]
[null,49,{"$f":"Karaktersporing!C52&COUNTIF(Karaktersporing!$C$4:C52,Karaktersporing!C52)","v":"0"}]
[null,50,{"$f":"Karaktersporing!C53&COUNTIF(Karaktersporing!$C$4:C53,Karaktersporing!C53)","v":"0"}]
[null,51,{"$f":"Karaktersporing!C54&COUNTIF(Karaktersporing!$C$4:C54,Karaktersporing!C54)","v":"0"}]
[null,52,{"$f":"Karaktersporing!C55&COUNTIF(Karaktersporing!$C$4:C55,Karaktersporing!C55)","v":"0"}]
[null,53,{"$f":"Karaktersporing!C56&COUNTIF(Karaktersporing!$C$4:C56,Karaktersporing!C56)","v":"0"}]
[null,54,{"$f":"Karaktersporing!C57&COUNTIF(Karaktersporing!$C$4:C57,Karaktersporing!C57)","v":"0"}]
[null,55,{"$f":"Karaktersporing!C58&COUNTIF(Karaktersporing!$C$4:C58,Karaktersporing!C58)","v":"0"}]
[null,56,{"$f":"Karaktersporing!C59&COUNTIF(Karaktersporing!$C$4:C59,Karaktersporing!C59)","v":"0"}]
[null,57,{"$f":"Karaktersporing!C60&COUNTIF(Karaktersporing!$C$4:C60,Karaktersporing!C60)","v":"0"}]
[null,58,{"$f":"Karaktersporing!C61&COUNTIF(Karaktersporing!$C$4:C61,Karaktersporing!C61)","v":"0"}]
[null,59,{"$f":"Karaktersporing!C62&COUNTIF(Karaktersporing!$C$4:C62,Karaktersporing!C62)","v":"0"}]
[null,60,{"$f":"Karaktersporing!C63&COUNTIF(Karaktersporing!$C$4:C63,Karaktersporing!C63)","v":"0"}]
[null,61,{"$f":"Karaktersporing!C64&COUNTIF(Karaktersporing!$C$4:C64,Karaktersporing!C64)","v":"0"}]
[null,62,{"$f":"Karaktersporing!C65&COUNTIF(Karaktersporing!$C$4:C65,Karaktersporing!C65)","v":"0"}]
[null,63,{"$f":"Karaktersporing!C66&COUNTIF(Karaktersporing!$C$4:C66,Karaktersporing!C66)","v":"0"}]
[null,64,{"$f":"Karaktersporing!C67&COUNTIF(Karaktersporing!$C$4:C67,Karaktersporing!C67)","v":"0"}]
[null,65,{"$f":"Karaktersporing!C68&COUNTIF(Karaktersporing!$C$4:C68,Karaktersporing!C68)","v":"0"}]
[null,66,{"$f":"Karaktersporing!C69&COUNTIF(Karaktersporing!$C$4:C69,Karaktersporing!C69)","v":"0"}]
[null,67,{"$f":"Karaktersporing!C70&COUNTIF(Karaktersporing!$C$4:C70,Karaktersporing!C70)","v":"0"}]
[null,68,{"$f":"Karaktersporing!C71&COUNTIF(Karaktersporing!$C$4:C71,Karaktersporing!C71)","v":"0"}]
[null,69,{"$f":"Karaktersporing!C72&COUNTIF(Karaktersporing!$C$4:C72,Karaktersporing!C72)","v":"0"}]
[null,70,{"$f":"Karaktersporing!C73&COUNTIF(Karaktersporing!$C$4:C73,Karaktersporing!C73)","v":"0"}]
[null,71,{"$f":"Karaktersporing!C74&COUNTIF(Karaktersporing!$C$4:C74,Karaktersporing!C74)","v":"0"}]
[null,72,{"$f":"Karaktersporing!C75&COUNTIF(Karaktersporing!$C$4:C75,Karaktersporing!C75)","v":"0"}]
[null,73,{"$f":"Karaktersporing!C76&COUNTIF(Karaktersporing!$C$4:C76,Karaktersporing!C76)","v":"0"}]
[null,74,{"$f":"Karaktersporing!C77&COUNTIF(Karaktersporing!$C$4:C77,Karaktersporing!C77)","v":"0"}]
[null,75,{"$f":"Karaktersporing!C78&COUNTIF(Karaktersporing!$C$4:C78,Karaktersporing!C78)","v":"0"}]
[null,76,{"$f":"Karaktersporing!C79&COUNTIF(Karaktersporing!$C$4:C79,Karaktersporing!C79)","v":"0"}]
[null,77,{"$f":"Karaktersporing!C80&COUNTIF(Karaktersporing!$C$4:C80,Karaktersporing!C80)","v":"0"}]
[null,78,{"$f":"Karaktersporing!C81&COUNTIF(Karaktersporing!$C$4:C81,Karaktersporing!C81)","v":"0"}]
[null,79,{"$f":"Karaktersporing!C82&COUNTIF(Karaktersporing!$C$4:C82,Karaktersporing!C82)","v":"0"}]
[null,80,{"$f":"Karaktersporing!C83&COUNTIF(Karaktersporing!$C$4:C83,Karaktersporing!C83)","v":"0"}]
[null,81,{"$f":"Karaktersporing!C84&COUNTIF(Karaktersporing!$C$4:C84,Karaktersporing!C84)","v":"0"}]
[null,82,{"$f":"Karaktersporing!C85&COUNTIF(Karaktersporing!$C$4:C85,Karaktersporing!C85)","v":"0"}]
[null,83,{"$f":"Karaktersporing!C86&COUNTIF(Karaktersporing!$C$4:C86,Karaktersporing!C86)","v":"0"}]
[null,84,{"$f":"Karaktersporing!C87&COUNTIF(Karaktersporing!$C$4:C87,Karaktersporing!C87)","v":"0"}]
[null,85,{"$f":"Karaktersporing!C88&COUNTIF(Karaktersporing!$C$4:C88,Karaktersporing!C88)","v":"0"}]
[null,86,{"$f":"Karaktersporing!C89&COUNTIF(Karaktersporing!$C$4:C89,Karaktersporing!C89)","v":"0"}]
[null,87,{"$f":"Karaktersporing!C90&COUNTIF(Karaktersporing!$C$4:C90,Karaktersporing!C90)","v":"0"}]
[null,88,{"$f":"Karaktersporing!C91&COUNTIF(Karaktersporing!$C$4:C91,Karaktersporing!C91)","v":"0"}]
[null,89,{"$f":"Karaktersporing!C92&COUNTIF(Karaktersporing!$C$4:C92,Karaktersporing!C92)","v":"0"}]
[null,90,{"$f":"Karaktersporing!C93&COUNTIF(Karaktersporing!$C$4:C93,Karaktersporing!C93)","v":"0"}]
[null,91,{"$f":"Karaktersporing!C94&COUNTIF(Karaktersporing!$C$4:C94,Karaktersporing!C94)","v":"0"}]
[null,92,{"$f":"Karaktersporing!C95&COUNTIF(Karaktersporing!$C$4:C95,Karaktersporing!C95)","v":"0"}]
[null,93,{"$f":"Karaktersporing!C96&COUNTIF(Karaktersporing!$C$4:C96,Karaktersporing!C96)","v":"0"}]
[null,94,{"$f":"Karaktersporing!C97&COUNTIF(Karaktersporing!$C$4:C97,Karaktersporing!C97)","v":"0"}]
[null,95,{"$f":"Karaktersporing!C98&COUNTIF(Karaktersporing!$C$4:C98,Karaktersporing!C98)","v":"0"}]
[null,96,{"$f":"Karaktersporing!C99&COUNTIF(Karaktersporing!$C$4:C99,Karaktersporing!C99)","v":"0"}]
[null,97,{"$f":"Karaktersporing!C100&COUNTIF(Karaktersporing!$C$4:C100,Karaktersporing!C100)","v":"0"}]
[null,98,{"$f":"Karaktersporing!C101&COUNTIF(Karaktersporing!$C$4:C101,Karaktersporing!C101)","v":"0"}]
[null,99,{"$f":"Karaktersporing!C102&COUNTIF(Karaktersporing!$C$4:C102,Karaktersporing!C102)","v":"0"}]
[null,100,{"$f":"Karaktersporing!C103&COUNTIF(Karaktersporing!$C$4:C103,Karaktersporing!C103)","v":"0"}]
[null,101,{"$f":"Karaktersporing!C104&COUNTIF(Karaktersporing!$C$4:C104,Karaktersporing!C104)","v":"0"}]
[null,102,{"$f":"Karaktersporing!C105&COUNTIF(Karaktersporing!$C$4:C105,Karaktersporing!C105)","v":"0"}]
[null,103,{"$f":"Karaktersporing!C106&COUNTIF(Karaktersporing!$C$4:C106,Karaktersporing!C106)","v":"0"}]
[null,104,{"$f":"Karaktersporing!C107&COUNTIF(Karaktersporing!$C$4:C107,Karaktersporing!C107)","v":"0"}]
[null,105,{"$f":"Karaktersporing!C108&COUNTIF(Karaktersporing!$C$4:C108,Karaktersporing!C108)","v":"0"}]
[null,106,{"$f":"Karaktersporing!C109&COUNTIF(Karaktersporing!$C$4:C109,Karaktersporing!C109)","v":"0"}]
[null,107,{"$f":"Karaktersporing!C110&COUNTIF(Karaktersporing!$C$4:C110,Karaktersporing!C110)","v":"0"}]
[null,108,{"$f":"Karaktersporing!C111&COUNTIF(Karaktersporing!$C$4:C111,Karaktersporing!C111)","v":"0"}]
[null,109,{"$f":"Karaktersporing!C112&COUNTIF(Karaktersporing!$C$4:C112,Karaktersporing!C112)","v":"0"}]
[null,110,{"$f":"Karaktersporing!C113&COUNTIF(Karaktersporing!$C$4:C113,Karaktersporing!C113)","v":"0"}]
[null,111,{"$f":"Karaktersporing!C114&COUNTIF(Karaktersporing!$C$4:C114,Karaktersporing!C114)","v":"0"}]
[null,112,{"$f":"Karaktersporing!C115&COUNTIF(Karaktersporing!$C$4:C115,Karaktersporing!C115)","v":"0"}]
[null,113,{"$f":"Karaktersporing!C116&COUNTIF(Karaktersporing!$C$4:C116,Karaktersporing!C116)","v":"0"}]
[null,114,{"$f":"Karaktersporing!C117&COUNTIF(Karaktersporing!$C$4:C117,Karaktersporing!C117)","v":"0"}]
[null,115,{"$f":"Karaktersporing!C118&COUNTIF(Karaktersporing!$C$4:C118,Karaktersporing!C118)","v":"0"}]
[null,116,{"$f":"Karaktersporing!C119&COUNTIF(Karaktersporing!$C$4:C119,Karaktersporing!C119)","v":"0"}]
[null,117,{"$f":"Karaktersporing!C120&COUNTIF(Karaktersporing!$C$4:C120,Karaktersporing!C120)","v":"0"}]
[null,118,{"$f":"Karaktersporing!C121&COUNTIF(Karaktersporing!$C$4:C121,Karaktersporing!C121)","v":"0"}]
[null,119,{"$f":"Karaktersporing!C122&COUNTIF(Karaktersporing!$C$4:C122,Karaktersporing!C122)","v":"0"}]
[null,120,{"$f":"Karaktersporing!C123&COUNTIF(Karaktersporing!$C$4:C123,Karaktersporing!C123)","v":"0"}]
[null,121,{"$f":"Karaktersporing!C124&COUNTIF(Karaktersporing!$C$4:C124,Karaktersporing!C124)","v":"0"}]
[null,122,{"$f":"Karaktersporing!C125&COUNTIF(Karaktersporing!$C$4:C125,Karaktersporing!C125)","v":"0"}]
[null,123,{"$f":"Karaktersporing!C126&COUNTIF(Karaktersporing!$C$4:C126,Karaktersporing!C126)","v":"0"}]
[null,124,{"$f":"Karaktersporing!C127&COUNTIF(Karaktersporing!$C$4:C127,Karaktersporing!C127)","v":"0"}]
[null,125,{"$f":"Karaktersporing!C128&COUNTIF(Karaktersporing!$C$4:C128,Karaktersporing!C128)","v":"0"}]
[null,126,{"$f":"Karaktersporing!C129&COUNTIF(Karaktersporing!$C$4:C129,Karaktersporing!C129)","v":"0"}]
[null,127,{"$f":"Karaktersporing!C130&COUNTIF(Karaktersporing!$C$4:C130,Karaktersporing!C130)","v":"0"}]
[null,128,{"$f":"Karaktersporing!C131&COUNTIF(Karaktersporing!$C$4:C131,Karaktersporing!C131)","v":"0"}]
[null,129,{"$f":"Karaktersporing!C132&COUNTIF(Karaktersporing!$C$4:C132,Karaktersporing!C132)","v":"0"}]
[null,130,{"$f":"Karaktersporing!C133&COUNTIF(Karaktersporing!$C$4:C133,Karaktersporing!C133)","v":"0"}]
[null,131,{"$f":"Karaktersporing!C134&COUNTIF(Karaktersporing!$C$4:C134,Karaktersporing!C134)","v":"0"}]
[null,132,{"$f":"Karaktersporing!C135&COUNTIF(Karaktersporing!$C$4:C135,Karaktersporing!C135)","v":"0"}]
[null,133,{"$f":"Karaktersporing!C136&COUNTIF(Karaktersporing!$C$4:C136,Karaktersporing!C136)","v":"0"}]
[null,134,{"$f":"Karaktersporing!C137&COUNTIF(Karaktersporing!$C$4:C137,Karaktersporing!C137)","v":"0"}]
[null,135,{"$f":"Karaktersporing!C138&COUNTIF(Karaktersporing!$C$4:C138,Karaktersporing!C138)","v":"0"}]
[null,136,{"$f":"Karaktersporing!C139&COUNTIF(Karaktersporing!$C$4:C139,Karaktersporing!C139)","v":"0"}]
[null,137,{"$f":"Karaktersporing!C140&COUNTIF(Karaktersporing!$C$4:C140,Karaktersporing!C140)","v":"0"}]
[null,138,{"$f":"Karaktersporing!C141&COUNTIF(Karaktersporing!$C$4:C141,Karaktersporing!C141)","v":"0"}]
[null,139,{"$f":"Karaktersporing!C142&COUNTIF(Karaktersporing!$C$4:C142,Karaktersporing!C142)","v":"0"}]
[null,140,{"$f":"Karaktersporing!C143&COUNTIF(Karaktersporing!$C$4:C143,Karaktersporing!C143)","v":"0"}]
[null,141,{"$f":"Karaktersporing!C144&COUNTIF(Karaktersporing!$C$4:C144,Karaktersporing!C144)","v":"0"}]
[null,142,{"$f":"Karaktersporing!C145&COUNTIF(Karaktersporing!$C$4:C145,Karaktersporing!C145)","v":"0"}]
[null,143,{"$f":"Karaktersporing!C146&COUNTIF(Karaktersporing!$C$4:C146,Karaktersporing!C146)","v":"0"}]
[null,144,{"$f":"Karaktersporing!C147&COUNTIF(Karaktersporing!$C$4:C147,Karaktersporing!C147)","v":"0"}]
[null,145,{"$f":"Karaktersporing!C148&COUNTIF(Karaktersporing!$C$4:C148,Karaktersporing!C148)","v":"0"}]
[null,146,{"$f":"Karaktersporing!C149&COUNTIF(Karaktersporing!$C$4:C149,Karaktersporing!C149)","v":"0"}]
[null,147,{"$f":"Karaktersporing!C150&COUNTIF(Karaktersporing!$C$4:C150,Karaktersporing!C150)","v":"0"}]
[null,148,{"$f":"Karaktersporing!C151&COUNTIF(Karaktersporing!$C$4:C151,Karaktersporing!C151)","v":"0"}]
[null,149,{"$f":"Karaktersporing!C152&COUNTIF(Karaktersporing!$C$4:C152,Karaktersporing!C152)","v":"0"}]
[null,150,{"$f":"Karaktersporing!C153&COUNTIF(Karaktersporing!$C$4:C153,Karaktersporing!C153)","v":"0"}]
[null,151,{"$f":"Karaktersporing!C154&COUNTIF(Karaktersporing!$C$4:C154,Karaktersporing!C154)","v":"0"}]
[null,152,{"$f":"Karaktersporing!C155&COUNTIF(Karaktersporing!$C$4:C155,Karaktersporing!C155)","v":"0"}]
[null,153,{"$f":"Karaktersporing!C156&COUNTIF(Karaktersporing!$C$4:C156,Karaktersporing!C156)","v":"0"}]
[null,154,{"$f":"Karaktersporing!C157&COUNTIF(Karaktersporing!$C$4:C157,Karaktersporing!C157)","v":"0"}]
[null,155,{"$f":"Karaktersporing!C158&COUNTIF(Karaktersporing!$C$4:C158,Karaktersporing!C158)","v":"0"}]
[null,156,{"$f":"Karaktersporing!C159&COUNTIF(Karaktersporing!$C$4:C159,Karaktersporing!C159)","v":"0"}]
[null,157,{"$f":"Karaktersporing!C160&COUNTIF(Karaktersporing!$C$4:C160,Karaktersporing!C160)","v":"0"}]
[null,158,{"$f":"Karaktersporing!C161&COUNTIF(Karaktersporing!$C$4:C161,Karaktersporing!C161)","v":"0"}]
[null,159,{"$f":"Karaktersporing!C162&COUNTIF(Karaktersporing!$C$4:C162,Karaktersporing!C162)","v":"0"}]
[null,160,{"$f":"Karaktersporing!C163&COUNTIF(Karaktersporing!$C$4:C163,Karaktersporing!C163)","v":"0"}]
[null,161,{"$f":"Karaktersporing!C164&COUNTIF(Karaktersporing!$C$4:C164,Karaktersporing!C164)","v":"0"}]
[null,162,{"$f":"Karaktersporing!C165&COUNTIF(Karaktersporing!$C$4:C165,Karaktersporing!C165)","v":"0"}]
[null,163,{"$f":"Karaktersporing!C166&COUNTIF(Karaktersporing!$C$4:C166,Karaktersporing!C166)","v":"0"}]
[null,164,{"$f":"Karaktersporing!C167&COUNTIF(Karaktersporing!$C$4:C167,Karaktersporing!C167)","v":"0"}]
[null,165,{"$f":"Karaktersporing!C168&COUNTIF(Karaktersporing!$C$4:C168,Karaktersporing!C168)","v":"0"}]
[null,166,{"$f":"Karaktersporing!C169&COUNTIF(Karaktersporing!$C$4:C169,Karaktersporing!C169)","v":"0"}]
[null,167,{"$f":"Karaktersporing!C170&COUNTIF(Karaktersporing!$C$4:C170,Karaktersporing!C170)","v":"0"}]
[null,168,{"$f":"Karaktersporing!C171&COUNTIF(Karaktersporing!$C$4:C171,Karaktersporing!C171)","v":"0"}]
[null,169,{"$f":"Karaktersporing!C172&COUNTIF(Karaktersporing!$C$4:C172,Karaktersporing!C172)","v":"0"}]
[null,170,{"$f":"Karaktersporing!C173&COUNTIF(Karaktersporing!$C$4:C173,Karaktersporing!C173)","v":"0"}]
[null,171,{"$f":"Karaktersporing!C174&COUNTIF(Karaktersporing!$C$4:C174,Karaktersporing!C174)","v":"0"}]
[null,172,{"$f":"Karaktersporing!C175&COUNTIF(Karaktersporing!$C$4:C175,Karaktersporing!C175)","v":"0"}]
[null,173,{"$f":"Karaktersporing!C176&COUNTIF(Karaktersporing!$C$4:C176,Karaktersporing!C176)","v":"0"}]
[null,174,{"$f":"Karaktersporing!C177&COUNTIF(Karaktersporing!$C$4:C177,Karaktersporing!C177)","v":"0"}]
[null,175,{"$f":"Karaktersporing!C178&COUNTIF(Karaktersporing!$C$4:C178,Karaktersporing!C178)","v":"0"}]
[null,176,{"$f":"Karaktersporing!C179&COUNTIF(Karaktersporing!$C$4:C179,Karaktersporing!C179)","v":"0"}]
[null,177,{"$f":"Karaktersporing!C180&COUNTIF(Karaktersporing!$C$4:C180,Karaktersporing!C180)","v":"0"}]
[null,178,{"$f":"Karaktersporing!C181&COUNTIF(Karaktersporing!$C$4:C181,Karaktersporing!C181)","v":"0"}]
[null,179,{"$f":"Karaktersporing!C182&COUNTIF(Karaktersporing!$C$4:C182,Karaktersporing!C182)","v":"0"}]
[null,180,{"$f":"Karaktersporing!C183&COUNTIF(Karaktersporing!$C$4:C183,Karaktersporing!C183)","v":"0"}]
[null,181,{"$f":"Karaktersporing!C184&COUNTIF(Karaktersporing!$C$4:C184,Karaktersporing!C184)","v":"0"}]
[null,182,{"$f":"Karaktersporing!C185&COUNTIF(Karaktersporing!$C$4:C185,Karaktersporing!C185)","v":"0"}]
[null,183,{"$f":"Karaktersporing!C186&COUNTIF(Karaktersporing!$C$4:C186,Karaktersporing!C186)","v":"0"}]
[null,184,{"$f":"Karaktersporing!C187&COUNTIF(Karaktersporing!$C$4:C187,Karaktersporing!C187)","v":"0"}]
[null,185,{"$f":"Karaktersporing!C188&COUNTIF(Karaktersporing!$C$4:C188,Karaktersporing!C188)","v":"0"}]
[null,186,{"$f":"Karaktersporing!C189&COUNTIF(Karaktersporing!$C$4:C189,Karaktersporing!C189)","v":"0"}]
[null,187,{"$f":"Karaktersporing!C190&COUNTIF(Karaktersporing!$C$4:C190,Karaktersporing!C190)","v":"0"}]
[null,188,{"$f":"Karaktersporing!C191&COUNTIF(Karaktersporing!$C$4:C191,Karaktersporing!C191)","v":"0"}]
[null,189,{"$f":"Karaktersporing!C192&COUNTIF(Karaktersporing!$C$4:C192,Karaktersporing!C192)","v":"0"}]
[null,190,{"$f":"Karaktersporing!C193&COUNTIF(Karaktersporing!$C$4:C193,Karaktersporing!C193)","v":"0"}]
[null,191,{"$f":"Karaktersporing!C194&COUNTIF(Karaktersporing!$C$4:C194,Karaktersporing!C194)","v":"0"}]
[null,192,{"$f":"Karaktersporing!C195&COUNTIF(Karaktersporing!$C$4:C195,Karaktersporing!C195)","v":"0"}]
[null,193,{"$f":"Karaktersporing!C196&COUNTIF(Karaktersporing!$C$4:C196,Karaktersporing!C196)","v":"0"}]
[null,194,{"$f":"Karaktersporing!C197&COUNTIF(Karaktersporing!$C$4:C197,Karaktersporing!C197)","v":"0"}]
[null,195,{"$f":"Karaktersporing!C198&COUNTIF(Karaktersporing!$C$4:C198,Karaktersporing!C198)","v":"0"}]
[null,196,{"$f":"Karaktersporing!C199&COUNTIF(Karaktersporing!$C$4:C199,Karaktersporing!C199)","v":"0"}]
[null,197,{"$f":"Karaktersporing!C200&COUNTIF(Karaktersporing!$C$4:C200,Karaktersporing!C200)","v":"0"}]
[null,198,{"$f":"Karaktersporing!C201&COUNTIF(Karaktersporing!$C$4:C201,Karaktersporing!C201)","v":"0"}]
[null,199,{"$f":"Karaktersporing!C202&COUNTIF(Karaktersporing!$C$4:C202,Karaktersporing!C202)","v":"0"}]
[null,200,{"$f":"Karaktersporing!C203&COUNTIF(Karaktersporing!$C$4:C203,Karaktersporing!C203)","v":"0"}]
[null,201,{"$f":"Karaktersporing!C204&COUNTIF(Karaktersporing!$C$4:C204,Karaktersporing!C204)","v":"0"}]
[null,202,{"$f":"Karaktersporing!C205&COUNTIF(Karaktersporing!$C$4:C205,Karaktersporing!C205)","v":"0"}]
[null,203,{"$f":"Karaktersporing!C206&COUNTIF(Karaktersporing!$C$4:C206,Karaktersporing!C206)","v":"0"}]
[null,204,{"$f":"Karaktersporing!C207&COUNTIF(Karaktersporing!$C$4:C207,Karaktersporing!C207)","v":"0"}]
[null,205,{"$f":"Karaktersporing!C208&COUNTIF(Karaktersporing!$C$4:C208,Karaktersporing!C208)","v":"0"}]
[null,206,{"$f":"Karaktersporing!C209&COUNTIF(Karaktersporing!$C$4:C209,Karaktersporing!C209)","v":"0"}]
[null,207,{"$f":"Karaktersporing!C210&COUNTIF(Karaktersporing!$C$4:C210,Karaktersporing!C210)","v":"0"}]
[null,208,{"$f":"Karaktersporing!C211&COUNTIF(Karaktersporing!$C$4:C211,Karaktersporing!C211)","v":"0"}]
[null,209,{"$f":"Karaktersporing!C212&COUNTIF(Karaktersporing!$C$4:C212,Karaktersporing!C212)","v":"0"}]
[null,210,{"$f":"Karaktersporing!C213&COUNTIF(Karaktersporing!$C$4:C213,Karaktersporing!C213)","v":"0"}]
[null,211,{"$f":"Karaktersporing!C214&COUNTIF(Karaktersporing!$C$4:C214,Karaktersporing!C214)","v":"0"}]
[null,212,{"$f":"Karaktersporing!C215&COUNTIF(Karaktersporing!$C$4:C215,Karaktersporing!C215)","v":"0"}]
[null,213,{"$f":"Karaktersporing!C216&COUNTIF(Karaktersporing!$C$4:C216,Karaktersporing!C216)","v":"0"}]
[null,214,{"$f":"Karaktersporing!C217&COUNTIF(Karaktersporing!$C$4:C217,Karaktersporing!C217)","v":"0"}]
[null,215,{"$f":"Karaktersporing!C218&COUNTIF(Karaktersporing!$C$4:C218,Karaktersporing!C218)","v":"0"}]
[null,216,{"$f":"Karaktersporing!C219&COUNTIF(Karaktersporing!$C$4:C219,Karaktersporing!C219)","v":"0"}]
[null,217,{"$f":"Karaktersporing!C220&COUNTIF(Karaktersporing!$C$4:C220,Karaktersporing!C220)","v":"0"}]
[null,218,{"$f":"Karaktersporing!C221&COUNTIF(Karaktersporing!$C$4:C221,Karaktersporing!C221)","v":"0"}]
[null,219,{"$f":"Karaktersporing!C222&COUNTIF(Karaktersporing!$C$4:C222,Karaktersporing!C222)","v":"0"}]
[null,220,{"$f":"Karaktersporing!C223&COUNTIF(Karaktersporing!$C$4:C223,Karaktersporing!C223)","v":"0"}]
[null,221,{"$f":"Karaktersporing!C224&COUNTIF(Karaktersporing!$C$4:C224,Karaktersporing!C224)","v":"0"}]
[null,222,{"$f":"Karaktersporing!C225&COUNTIF(Karaktersporing!$C$4:C225,Karaktersporing!C225)","v":"0"}]
[null,223,{"$f":"Karaktersporing!C226&COUNTIF(Karaktersporing!$C$4:C226,Karaktersporing!C226)","v":"0"}]
[null,224,{"$f":"Karaktersporing!C227&COUNTIF(Karaktersporing!$C$4:C227,Karaktersporing!C227)","v":"0"}]
[null,225,{"$f":"Karaktersporing!C228&COUNTIF(Karaktersporing!$C$4:C228,Karaktersporing!C228)","v":"0"}]
[null,226,{"$f":"Karaktersporing!C229&COUNTIF(Karaktersporing!$C$4:C229,Karaktersporing!C229)","v":"0"}]
[null,227,{"$f":"Karaktersporing!C230&COUNTIF(Karaktersporing!$C$4:C230,Karaktersporing!C230)","v":"0"}]
[null,228,{"$f":"Karaktersporing!C231&COUNTIF(Karaktersporing!$C$4:C231,Karaktersporing!C231)","v":"0"}]
[null,229,{"$f":"Karaktersporing!C232&COUNTIF(Karaktersporing!$C$4:C232,Karaktersporing!C232)","v":"0"}]
[null,230,{"$f":"Karaktersporing!C233&COUNTIF(Karaktersporing!$C$4:C233,Karaktersporing!C233)","v":"0"}]
[null,231,{"$f":"Karaktersporing!C234&COUNTIF(Karaktersporing!$C$4:C234,Karaktersporing!C234)","v":"0"}]
[null,232,{"$f":"Karaktersporing!C235&COUNTIF(Karaktersporing!$C$4:C235,Karaktersporing!C235)","v":"0"}]
[null,233,{"$f":"Karaktersporing!C236&COUNTIF(Karaktersporing!$C$4:C236,Karaktersporing!C236)","v":"0"}]
[null,234,{"$f":"Karaktersporing!C237&COUNTIF(Karaktersporing!$C$4:C237,Karaktersporing!C237)","v":"0"}]
[null,235,{"$f":"Karaktersporing!C238&COUNTIF(Karaktersporing!$C$4:C238,Karaktersporing!C238)","v":"0"}]
[null,236,{"$f":"Karaktersporing!C239&COUNTIF(Karaktersporing!$C$4:C239,Karaktersporing!C239)","v":"0"}]
[null,237,{"$f":"Karaktersporing!C240&COUNTIF(Karaktersporing!$C$4:C240,Karaktersporing!C240)","v":"0"}]
[null,238,{"$f":"Karaktersporing!C241&COUNTIF(Karaktersporing!$C$4:C241,Karaktersporing!C241)","v":"0"}]
[null,239,{"$f":"Karaktersporing!C242&COUNTIF(Karaktersporing!$C$4:C242,Karaktersporing!C242)","v":"0"}]
[null,240,{"$f":"Karaktersporing!C243&COUNTIF(Karaktersporing!$C$4:C243,Karaktersporing!C243)","v":"0"}]
[null,241,{"$f":"Karaktersporing!C244&COUNTIF(Karaktersporing!$C$4:C244,Karaktersporing!C244)","v":"0"}]
[null,242,{"$f":"Karaktersporing!C245&COUNTIF(Karaktersporing!$C$4:C245,Karaktersporing!C245)","v":"0"}]
[null,243,{"$f":"Karaktersporing!C246&COUNTIF(Karaktersporing!$C$4:C246,Karaktersporing!C246)","v":"0"}]
[null,244,{"$f":"Karaktersporing!C247&COUNTIF(Karaktersporing!$C$4:C247,Karaktersporing!C247)","v":"0"}]
[null,245,{"$f":"Karaktersporing!C248&COUNTIF(Karaktersporing!$C$4:C248,Karaktersporing!C248)","v":"0"}]
[null,246,{"$f":"Karaktersporing!C249&COUNTIF(Karaktersporing!$C$4:C249,Karaktersporing!C249)","v":"0"}]
[null,247,{"$f":"Karaktersporing!C250&COUNTIF(Karaktersporing!$C$4:C250,Karaktersporing!C250)","v":"0"}]
[null,248,{"$f":"Karaktersporing!C251&COUNTIF(Karaktersporing!$C$4:C251,Karaktersporing!C251)","v":"0"}]
[null,249,{"$f":"Karaktersporing!C252&COUNTIF(Karaktersporing!$C$4:C252,Karaktersporing!C252)","v":"0"}]
[null,250,{"$f":"Karaktersporing!C253&COUNTIF(Karaktersporing!$C$4:C253,Karaktersporing!C253)","v":"0"}]
[null,251,{"$f":"Karaktersporing!C254&COUNTIF(Karaktersporing!$C$4:C254,Karaktersporing!C254)","v":"0"}]
[null,252,{"$f":"Karaktersporing!C255&COUNTIF(Karaktersporing!$C$4:C255,Karaktersporing!C255)","v":"0"}]
[null,253,{"$f":"Karaktersporing!C256&COUNTIF(Karaktersporing!$C$4:C256,Karaktersporing!C256)","v":"0"}]
[null,254,{"$f":"Karaktersporing!C257&COUNTIF(Karaktersporing!$C$4:C257,Karaktersporing!C257)","v":"0"}]
[null,255,{"$f":"Karaktersporing!C258&COUNTIF(Karaktersporing!$C$4:C258,Karaktersporing!C258)","v":"0"}]
[null,256,{"$f":"Karaktersporing!C259&COUNTIF(Karaktersporing!$C$4:C259,Karaktersporing!C259)","v":"0"}]
[null,257,{"$f":"Karaktersporing!C260&COUNTIF(Karaktersporing!$C$4:C260,Karaktersporing!C260)","v":"0"}]
[null,258,{"$f":"Karaktersporing!C261&COUNTIF(Karaktersporing!$C$4:C261,Karaktersporing!C261)","v":"0"}]
[null,259,{"$f":"Karaktersporing!C262&COUNTIF(Karaktersporing!$C$4:C262,Karaktersporing!C262)","v":"0"}]
[null,260,{"$f":"Karaktersporing!C263&COUNTIF(Karaktersporing!$C$4:C263,Karaktersporing!C263)","v":"0"}]
[null,261,{"$f":"Karaktersporing!C264&COUNTIF(Karaktersporing!$C$4:C264,Karaktersporing!C264)","v":"0"}]
[null,262,{"$f":"Karaktersporing!C265&COUNTIF(Karaktersporing!$C$4:C265,Karaktersporing!C265)","v":"0"}]
[null,263,{"$f":"Karaktersporing!C266&COUNTIF(Karaktersporing!$C$4:C266,Karaktersporing!C266)","v":"0"}]
[null,264,{"$f":"Karaktersporing!C267&COUNTIF(Karaktersporing!$C$4:C267,Karaktersporing!C267)","v":"0"}]
[null,265,{"$f":"Karaktersporing!C268&COUNTIF(Karaktersporing!$C$4:C268,Karaktersporing!C268)","v":"0"}]
[null,266,{"$f":"Karaktersporing!C269&COUNTIF(Karaktersporing!$C$4:C269,Karaktersporing!C269)","v":"0"}]
[null,267,{"$f":"Karaktersporing!C270&COUNTIF(Karaktersporing!$C$4:C270,Karaktersporing!C270)","v":"0"}]
[null,268,{"$f":"Karaktersporing!C271&COUNTIF(Karaktersporing!$C$4:C271,Karaktersporing!C271)","v":"0"}]
[null,269,{"$f":"Karaktersporing!C272&COUNTIF(Karaktersporing!$C$4:C272,Karaktersporing!C272)","v":"0"}]
[null,270,{"$f":"Karaktersporing!C273&COUNTIF(Karaktersporing!$C$4:C273,Karaktersporing!C273)","v":"0"}]
[null,271,{"$f":"Karaktersporing!C274&COUNTIF(Karaktersporing!$C$4:C274,Karaktersporing!C274)","v":"0"}]
[null,272,{"$f":"Karaktersporing!C275&COUNTIF(Karaktersporing!$C$4:C275,Karaktersporing!C275)","v":"0"}]
[null,273,{"$f":"Karaktersporing!C276&COUNTIF(Karaktersporing!$C$4:C276,Karaktersporing!C276)","v":"0"}]
[null,274,{"$f":"Karaktersporing!C277&COUNTIF(Karaktersporing!$C$4:C277,Karaktersporing!C277)","v":"0"}]
[null,275,{"$f":"Karaktersporing!C278&COUNTIF(Karaktersporing!$C$4:C278,Karaktersporing!C278)","v":"0"}]
[null,276,{"$f":"Karaktersporing!C279&COUNTIF(Karaktersporing!$C$4:C279,Karaktersporing!C279)","v":"0"}]
[null,277,{"$f":"Karaktersporing!C280&COUNTIF(Karaktersporing!$C$4:C280,Karaktersporing!C280)","v":"0"}]
[null,278,{"$f":"Karaktersporing!C281&COUNTIF(Karaktersporing!$C$4:C281,Karaktersporing!C281)","v":"0"}]
[null,279,{"$f":"Karaktersporing!C282&COUNTIF(Karaktersporing!$C$4:C282,Karaktersporing!C282)","v":"0"}]
[null,280,{"$f":"Karaktersporing!C283&COUNTIF(Karaktersporing!$C$4:C283,Karaktersporing!C283)","v":"0"}]
[null,281,{"$f":"Karaktersporing!C284&COUNTIF(Karaktersporing!$C$4:C284,Karaktersporing!C284)","v":"0"}]
[null,282,{"$f":"Karaktersporing!C285&COUNTIF(Karaktersporing!$C$4:C285,Karaktersporing!C285)","v":"0"}]
[null,283,{"$f":"Karaktersporing!C286&COUNTIF(Karaktersporing!$C$4:C286,Karaktersporing!C286)","v":"0"}]
[null,284,{"$f":"Karaktersporing!C287&COUNTIF(Karaktersporing!$C$4:C287,Karaktersporing!C287)","v":"0"}]
[null,285,{"$f":"Karaktersporing!C288&COUNTIF(Karaktersporing!$C$4:C288,Karaktersporing!C288)","v":"0"}]
[null,286,{"$f":"Karaktersporing!C289&COUNTIF(Karaktersporing!$C$4:C289,Karaktersporing!C289)","v":"0"}]
[null,287,{"$f":"Karaktersporing!C290&COUNTIF(Karaktersporing!$C$4:C290,Karaktersporing!C290)","v":"0"}]
[null,288,{"$f":"Karaktersporing!C291&COUNTIF(Karaktersporing!$C$4:C291,Karaktersporing!C291)","v":"0"}]
[null,289,{"$f":"Karaktersporing!C292&COUNTIF(Karaktersporing!$C$4:C292,Karaktersporing!C292)","v":"0"}]
[null,290,{"$f":"Karaktersporing!C293&COUNTIF(Karaktersporing!$C$4:C293,Karaktersporing!C293)","v":"0"}]
[null,291,{"$f":"Karaktersporing!C294&COUNTIF(Karaktersporing!$C$4:C294,Karaktersporing!C294)","v":"0"}]
[null,292,{"$f":"Karaktersporing!C295&COUNTIF(Karaktersporing!$C$4:C295,Karaktersporing!C295)","v":"0"}]
[null,293,{"$f":"Karaktersporing!C296&COUNTIF(Karaktersporing!$C$4:C296,Karaktersporing!C296)","v":"0"}]
[null,294,{"$f":"Karaktersporing!C297&COUNTIF(Karaktersporing!$C$4:C297,Karaktersporing!C297)","v":"0"}]
[null,295,{"$f":"Karaktersporing!C298&COUNTIF(Karaktersporing!$C$4:C298,Karaktersporing!C298)","v":"0"}]
[null,296,{"$f":"Karaktersporing!C299&COUNTIF(Karaktersporing!$C$4:C299,Karaktersporing!C299)","v":"0"}]
[null,297,{"$f":"Karaktersporing!C300&COUNTIF(Karaktersporing!$C$4:C300,Karaktersporing!C300)","v":"0"}]
[null,298,{"$f":"Karaktersporing!C301&COUNTIF(Karaktersporing!$C$4:C301,Karaktersporing!C301)","v":"0"}]
[null,299,{"$f":"Karaktersporing!C302&COUNTIF(Karaktersporing!$C$4:C302,Karaktersporing!C302)","v":"0"}]
[null,300,{"$f":"Karaktersporing!C303&COUNTIF(Karaktersporing!$C$4:C303,Karaktersporing!C303)","v":"0"}]
[null,301,{"$f":"Karaktersporing!C304&COUNTIF(Karaktersporing!$C$4:C304,Karaktersporing!C304)","v":"0"}]
[null,302,{"$f":"Karaktersporing!C305&COUNTIF(Karaktersporing!$C$4:C305,Karaktersporing!C305)","v":"0"}]
[null,303,{"$f":"Karaktersporing!C306&COUNTIF(Karaktersporing!$C$4:C306,Karaktersporing!C306)","v":"0"}]
[null,304,{"$f":"Karaktersporing!C307&COUNTIF(Karaktersporing!$C$4:C307,Karaktersporing!C307)","v":"0"}]
[null,305,{"$f":"Karaktersporing!C308&COUNTIF(Karaktersporing!$C$4:C308,Karaktersporing!C308)","v":"0"}]
[null,306,{"$f":"Karaktersporing!C309&COUNTIF(Karaktersporing!$C$4:C309,Karaktersporing!C309)","v":"0"}]
[null,307,{"$f":"Karaktersporing!C310&COUNTIF(Karaktersporing!$C$4:C310,Karaktersporing!C310)","v":"0"}]
[null,308,{"$f":"Karaktersporing!C311&COUNTIF(Karaktersporing!$C$4:C311,Karaktersporing!C311)","v":"0"}]
[null,309,{"$f":"Karaktersporing!C312&COUNTIF(Karaktersporing!$C$4:C312,Karaktersporing!C312)","v":"0"}]
[null,310,{"$f":"Karaktersporing!C313&COUNTIF(Karaktersporing!$C$4:C313,Karaktersporing!C313)","v":"0"}]
[null,311,{"$f":"Karaktersporing!C314&COUNTIF(Karaktersporing!$C$4:C314,Karaktersporing!C314)","v":"0"}]
[null,312,{"$f":"Karaktersporing!C315&COUNTIF(Karaktersporing!$C$4:C315,Karaktersporing!C315)","v":"0"}]
[null,313,{"$f":"Karaktersporing!C316&COUNTIF(Karaktersporing!$C$4:C316,Karaktersporing!C316)","v":"0"}]
[null,314,{"$f":"Karaktersporing!C317&COUNTIF(Karaktersporing!$C$4:C317,Karaktersporing!C317)","v":"0"}]
[null,315,{"$f":"Karaktersporing!C318&COUNTIF(Karaktersporing!$C$4:C318,Karaktersporing!C318)","v":"0"}]
[null,316,{"$f":"Karaktersporing!C319&COUNTIF(Karaktersporing!$C$4:C319,Karaktersporing!C319)","v":"0"}]
[null,317,{"$f":"Karaktersporing!C320&COUNTIF(Karaktersporing!$C$4:C320,Karaktersporing!C320)","v":"0"}]
[null,318,{"$f":"Karaktersporing!C321&COUNTIF(Karaktersporing!$C$4:C321,Karaktersporing!C321)","v":"0"}]
[null,319,{"$f":"Karaktersporing!C322&COUNTIF(Karaktersporing!$C$4:C322,Karaktersporing!C322)","v":"0"}]
[null,320,{"$f":"Karaktersporing!C323&COUNTIF(Karaktersporing!$C$4:C323,Karaktersporing!C323)","v":"0"}]
[null,321,{"$f":"Karaktersporing!C324&COUNTIF(Karaktersporing!$C$4:C324,Karaktersporing!C324)","v":"0"}]
[null,322,{"$f":"Karaktersporing!C325&COUNTIF(Karaktersporing!$C$4:C325,Karaktersporing!C325)","v":"0"}]
[null,323,{"$f":"Karaktersporing!C326&COUNTIF(Karaktersporing!$C$4:C326,Karaktersporing!C326)","v":"0"}]
[null,324,{"$f":"Karaktersporing!C327&COUNTIF(Karaktersporing!$C$4:C327,Karaktersporing!C327)","v":"0"}]
[null,325,{"$f":"Karaktersporing!C328&COUNTIF(Karaktersporing!$C$4:C328,Karaktersporing!C328)","v":"0"}]
[null,326,{"$f":"Karaktersporing!C329&COUNTIF(Karaktersporing!$C$4:C329,Karaktersporing!C329)","v":"0"}]
[null,327,{"$f":"Karaktersporing!C330&COUNTIF(Karaktersporing!$C$4:C330,Karaktersporing!C330)","v":"0"}]
[null,328,{"$f":"Karaktersporing!C331&COUNTIF(Karaktersporing!$C$4:C331,Karaktersporing!C331)","v":"0"}]
[null,329,{"$f":"Karaktersporing!C332&COUNTIF(Karaktersporing!$C$4:C332,Karaktersporing!C332)","v":"0"}]
[null,330,{"$f":"Karaktersporing!C333&COUNTIF(Karaktersporing!$C$4:C333,Karaktersporing!C333)","v":"0"}]
[null,331,{"$f":"Karaktersporing!C334&COUNTIF(Karaktersporing!$C$4:C334,Karaktersporing!C334)","v":"0"}]
[null,332,{"$f":"Karaktersporing!C335&COUNTIF(Karaktersporing!$C$4:C335,Karaktersporing!C335)","v":"0"}]
[null,333,{"$f":"Karaktersporing!C336&COUNTIF(Karaktersporing!$C$4:C336,Karaktersporing!C336)","v":"0"}]
[null,334,{"$f":"Karaktersporing!C337&COUNTIF(Karaktersporing!$C$4:C337,Karaktersporing!C337)","v":"0"}]
[null,335,{"$f":"Karaktersporing!C338&COUNTIF(Karaktersporing!$C$4:C338,Karaktersporing!C338)","v":"0"}]
[null,336,{"$f":"Karaktersporing!C339&COUNTIF(Karaktersporing!$C$4:C339,Karaktersporing!C339)","v":"0"}]
[null,337,{"$f":"Karaktersporing!C340&COUNTIF(Karaktersporing!$C$4:C340,Karaktersporing!C340)","v":"0"}]
[null,338,{"$f":"Karaktersporing!C341&COUNTIF(Karaktersporing!$C$4:C341,Karaktersporing!C341)","v":"0"}]
[null,339,{"$f":"Karaktersporing!C342&COUNTIF(Karaktersporing!$C$4:C342,Karaktersporing!C342)","v":"0"}]
[null,340,{"$f":"Karaktersporing!C343&COUNTIF(Karaktersporing!$C$4:C343,Karaktersporing!C343)","v":"0"}]
[null,341,{"$f":"Karaktersporing!C344&COUNTIF(Karaktersporing!$C$4:C344,Karaktersporing!C344)","v":"0"}]
[null,342,{"$f":"Karaktersporing!C345&COUNTIF(Karaktersporing!$C$4:C345,Karaktersporing!C345)","v":"0"}]
[null,343,{"$f":"Karaktersporing!C346&COUNTIF(Karaktersporing!$C$4:C346,Karaktersporing!C346)","v":"0"}]
[null,344,{"$f":"Karaktersporing!C347&COUNTIF(Karaktersporing!$C$4:C347,Karaktersporing!C347)","v":"0"}]
[null,345,{"$f":"Karaktersporing!C348&COUNTIF(Karaktersporing!$C$4:C348,Karaktersporing!C348)","v":"0"}]
[null,346,{"$f":"Karaktersporing!C349&COUNTIF(Karaktersporing!$C$4:C349,Karaktersporing!C349)","v":"0"}]
[null,347,{"$f":"Karaktersporing!C350&COUNTIF(Karaktersporing!$C$4:C350,Karaktersporing!C350)","v":"0"}]
[null,348,{"$f":"Karaktersporing!C351&COUNTIF(Karaktersporing!$C$4:C351,Karaktersporing!C351)","v":"0"}]
[null,349,{"$f":"Karaktersporing!C352&COUNTIF(Karaktersporing!$C$4:C352,Karaktersporing!C352)","v":"0"}]
[null,350,{"$f":"Karaktersporing!C353&COUNTIF(Karaktersporing!$C$4:C353,Karaktersporing!C353)","v":"0"}]
[null,351,{"$f":"Karaktersporing!C354&COUNTIF(Karaktersporing!$C$4:C354,Karaktersporing!C354)","v":"0"}]
[null,352,{"$f":"Karaktersporing!C355&COUNTIF(Karaktersporing!$C$4:C355,Karaktersporing!C355)","v":"0"}]
[null,353,{"$f":"Karaktersporing!C356&COUNTIF(Karaktersporing!$C$4:C356,Karaktersporing!C356)","v":"0"}]
[null,354,{"$f":"Karaktersporing!C357&COUNTIF(Karaktersporing!$C$4:C357,Karaktersporing!C357)","v":"0"}]
[null,355,{"$f":"Karaktersporing!C358&COUNTIF(Karaktersporing!$C$4:C358,Karaktersporing!C358)","v":"0"}]
[null,356,{"$f":"Karaktersporing!C359&COUNTIF(Karaktersporing!$C$4:C359,Karaktersporing!C359)","v":"0"}]
[null,357,{"$f":"Karaktersporing!C360&COUNTIF(Karaktersporing!$C$4:C360,Karaktersporing!C360)","v":"0"}]
[null,358,{"$f":"Karaktersporing!C361&COUNTIF(Karaktersporing!$C$4:C361,Karaktersporing!C361)","v":"0"}]
[null,359,{"$f":"Karaktersporing!C362&COUNTIF(Karaktersporing!$C$4:C362,Karaktersporing!C362)","v":"0"}]
[null,360,{"$f":"Karaktersporing!C363&COUNTIF(Karaktersporing!$C$4:C363,Karaktersporing!C363)","v":"0"}]
[null,361,{"$f":"Karaktersporing!C364&COUNTIF(Karaktersporing!$C$4:C364,Karaktersporing!C364)","v":"0"}]
[null,362,{"$f":"Karaktersporing!C365&COUNTIF(Karaktersporing!$C$4:C365,Karaktersporing!C365)","v":"0"}]
[null,363,{"$f":"Karaktersporing!C366&COUNTIF(Karaktersporing!$C$4:C366,Karaktersporing!C366)","v":"0"}]
[null,364,{"$f":"Karaktersporing!C367&COUNTIF(Karaktersporing!$C$4:C367,Karaktersporing!C367)","v":"0"}]
[null,365,{"$f":"Karaktersporing!C368&COUNTIF(Karaktersporing!$C$4:C368,Karaktersporing!C368)","v":"0"}]
[null,366,{"$f":"Karaktersporing!C369&COUNTIF(Karaktersporing!$C$4:C369,Karaktersporing!C369)","v":"0"}]
[null,367,{"$f":"Karaktersporing!C370&COUNTIF(Karaktersporing!$C$4:C370,Karaktersporing!C370)","v":"0"}]
[null,368,{"$f":"Karaktersporing!C371&COUNTIF(Karaktersporing!$C$4:C371,Karaktersporing!C371)","v":"0"}]
[null,369,{"$f":"Karaktersporing!C372&COUNTIF(Karaktersporing!$C$4:C372,Karaktersporing!C372)","v":"0"}]
[null,370,{"$f":"Karaktersporing!C373&COUNTIF(Karaktersporing!$C$4:C373,Karaktersporing!C373)","v":"0"}]
[null,371,{"$f":"Karaktersporing!C374&COUNTIF(Karaktersporing!$C$4:C374,Karaktersporing!C374)","v":"0"}]
[null,372,{"$f":"Karaktersporing!C375&COUNTIF(Karaktersporing!$C$4:C375,Karaktersporing!C375)","v":"0"}]
[null,373,{"$f":"Karaktersporing!C376&COUNTIF(Karaktersporing!$C$4:C376,Karaktersporing!C376)","v":"0"}]
[null,374,{"$f":"Karaktersporing!C377&COUNTIF(Karaktersporing!$C$4:C377,Karaktersporing!C377)","v":"0"}]
[null,375,{"$f":"Karaktersporing!C378&COUNTIF(Karaktersporing!$C$4:C378,Karaktersporing!C378)","v":"0"}]
[null,376,{"$f":"Karaktersporing!C379&COUNTIF(Karaktersporing!$C$4:C379,Karaktersporing!C379)","v":"0"}]
[null,377,{"$f":"Karaktersporing!C380&COUNTIF(Karaktersporing!$C$4:C380,Karaktersporing!C380)","v":"0"}]
[null,378,{"$f":"Karaktersporing!C381&COUNTIF(Karaktersporing!$C$4:C381,Karaktersporing!C381)","v":"0"}]
[null,379,{"$f":"Karaktersporing!C382&COUNTIF(Karaktersporing!$C$4:C382,Karaktersporing!C382)","v":"0"}]
[null,380,{"$f":"Karaktersporing!C383&COUNTIF(Karaktersporing!$C$4:C383,Karaktersporing!C383)","v":"0"}]
[null,381,{"$f":"Karaktersporing!C384&COUNTIF(Karaktersporing!$C$4:C384,Karaktersporing!C384)","v":"0"}]
[null,382,{"$f":"Karaktersporing!C385&COUNTIF(Karaktersporing!$C$4:C385,Karaktersporing!C385)","v":"0"}]
[null,383,{"$f":"Karaktersporing!C386&COUNTIF(Karaktersporing!$C$4:C386,Karaktersporing!C386)","v":"0"}]
[null,384,{"$f":"Karaktersporing!C387&COUNTIF(Karaktersporing!$C$4:C387,Karaktersporing!C387)","v":"0"}]
[null,385,{"$f":"Karaktersporing!C388&COUNTIF(Karaktersporing!$C$4:C388,Karaktersporing!C388)","v":"0"}]
[null,386,{"$f":"Karaktersporing!C389&COUNTIF(Karaktersporing!$C$4:C389,Karaktersporing!C389)","v":"0"}]
[null,387,{"$f":"Karaktersporing!C390&COUNTIF(Karaktersporing!$C$4:C390,Karaktersporing!C390)","v":"0"}]
[null,388,{"$f":"Karaktersporing!C391&COUNTIF(Karaktersporing!$C$4:C391,Karaktersporing!C391)","v":"0"}]
[null,389,{"$f":"Karaktersporing!C392&COUNTIF(Karaktersporing!$C$4:C392,Karaktersporing!C392)","v":"0"}]
[null,390,{"$f":"Karaktersporing!C393&COUNTIF(Karaktersporing!$C$4:C393,Karaktersporing!C393)","v":"0"}]
[null,391,{"$f":"Karaktersporing!C394&COUNTIF(Karaktersporing!$C$4:C394,Karaktersporing!C394)","v":"0"}]
[null,392,{"$f":"Karaktersporing!C395&COUNTIF(Karaktersporing!$C$4:C395,Karaktersporing!C395)","v":"0"}]
[null,393,{"$f":"Karaktersporing!C396&COUNTIF(Karaktersporing!$C$4:C396,Karaktersporing!C396)","v":"0"}]
[null,394,{"$f":"Karaktersporing!C397&COUNTIF(Karaktersporing!$C$4:C397,Karaktersporing!C397)","v":"0"}]
[null,395,{"$f":"Karaktersporing!C398&COUNTIF(Karaktersporing!$C$4:C398,Karaktersporing!C398)","v":"0"}]
[null,396,{"$f":"Karaktersporing!C399&COUNTIF(Karaktersporing!$C$4:C399,Karaktersporing!C399)","v":"0"}]
[null,397,{"$f":"Karaktersporing!C400&COUNTIF(Karaktersporing!$C$4:C400,Karaktersporing!C400)","v":"0"}]
[null,398,{"$f":"Karaktersporing!C401&COUNTIF(Karaktersporing!$C$4:C401,Karaktersporing!C401)","v":"0"}]
[null,399,{"$f":"Karaktersporing!C402&COUNTIF(Karaktersporing!$C$4:C402,Karaktersporing!C402)","v":"0"}]
[null,400,{"$f":"Karaktersporing!C403&COUNTIF(Karaktersporing!$C$4:C403,Karaktersporing!C403)","v":"0"}]
[null,401,{"$f":"Karaktersporing!C404&COUNTIF(Karaktersporing!$C$4:C404,Karaktersporing!C404)","v":"0"}]
[null,402,{"$f":"Karaktersporing!C405&COUNTIF(Karaktersporing!$C$4:C405,Karaktersporing!C405)","v":"0"}]
[null,403,{"$f":"Karaktersporing!C406&COUNTIF(Karaktersporing!$C$4:C406,Karaktersporing!C406)","v":"0"}]
[null,404,{"$f":"Karaktersporing!C407&COUNTIF(Karaktersporing!$C$4:C407,Karaktersporing!C407)","v":"0"}]
[null,405,{"$f":"Karaktersporing!C408&COUNTIF(Karaktersporing!$C$4:C408,Karaktersporing!C408)","v":"0"}]
[null,406,{"$f":"Karaktersporing!C409&COUNTIF(Karaktersporing!$C$4:C409,Karaktersporing!C409)","v":"0"}]
[null,407,{"$f":"Karaktersporing!C410&COUNTIF(Karaktersporing!$C$4:C410,Karaktersporing!C410)","v":"0"}]
[null,408,{"$f":"Karaktersporing!C411&COUNTIF(Karaktersporing!$C$4:C411,Karaktersporing!C411)","v":"0"}]
[null,409,{"$f":"Karaktersporing!C412&COUNTIF(Karaktersporing!$C$4:C412,Karaktersporing!C412)","v":"0"}]
[null,410,{"$f":"Karaktersporing!C413&COUNTIF(Karaktersporing!$C$4:C413,Karaktersporing!C413)","v":"0"}]
[null,411,{"$f":"Karaktersporing!C414&COUNTIF(Karaktersporing!$C$4:C414,Karaktersporing!C414)","v":"0"}]
[null,412,{"$f":"Karaktersporing!C415&COUNTIF(Karaktersporing!$C$4:C415,Karaktersporing!C415)","v":"0"}]
[null,413,{"$f":"Karaktersporing!C416&COUNTIF(Karaktersporing!$C$4:C416,Karaktersporing!C416)","v":"0"}]
[null,414,{"$f":"Karaktersporing!C417&COUNTIF(Karaktersporing!$C$4:C417,Karaktersporing!C417)","v":"0"}]
[null,415,{"$f":"Karaktersporing!C418&COUNTIF(Karaktersporing!$C$4:C418,Karaktersporing!C418)","v":"0"}]
[null,416,{"$f":"Karaktersporing!C419&COUNTIF(Karaktersporing!$C$4:C419,Karaktersporing!C419)","v":"0"}]
[null,417,{"$f":"Karaktersporing!C420&COUNTIF(Karaktersporing!$C$4:C420,Karaktersporing!C420)","v":"0"}]
[null,418,{"$f":"Karaktersporing!C421&COUNTIF(Karaktersporing!$C$4:C421,Karaktersporing!C421)","v":"0"}]
[null,419,{"$f":"Karaktersporing!C422&COUNTIF(Karaktersporing!$C$4:C422,Karaktersporing!C422)","v":"0"}]
[null,420,{"$f":"Karaktersporing!C423&COUNTIF(Karaktersporing!$C$4:C423,Karaktersporing!C423)","v":"0"}]
[null,421,{"$f":"Karaktersporing!C424&COUNTIF(Karaktersporing!$C$4:C424,Karaktersporing!C424)","v":"0"}]
[null,422,{"$f":"Karaktersporing!C425&COUNTIF(Karaktersporing!$C$4:C425,Karaktersporing!C425)","v":"0"}]
[null,423,{"$f":"Karaktersporing!C426&COUNTIF(Karaktersporing!$C$4:C426,Karaktersporing!C426)","v":"0"}]
[null,424,{"$f":"Karaktersporing!C427&COUNTIF(Karaktersporing!$C$4:C427,Karaktersporing!C427)","v":"0"}]
[null,425,{"$f":"Karaktersporing!C428&COUNTIF(Karaktersporing!$C$4:C428,Karaktersporing!C428)","v":"0"}]
[null,426,{"$f":"Karaktersporing!C429&COUNTIF(Karaktersporing!$C$4:C429,Karaktersporing!C429)","v":"0"}]
[null,427,{"$f":"Karaktersporing!C430&COUNTIF(Karaktersporing!$C$4:C430,Karaktersporing!C430)","v":"0"}]
[null,428,{"$f":"Karaktersporing!C431&COUNTIF(Karaktersporing!$C$4:C431,Karaktersporing!C431)","v":"0"}]
[null,429,{"$f":"Karaktersporing!C432&COUNTIF(Karaktersporing!$C$4:C432,Karaktersporing!C432)","v":"0"}]
[null,430,{"$f":"Karaktersporing!C433&COUNTIF(Karaktersporing!$C$4:C433,Karaktersporing!C433)","v":"0"}]
[null,431,{"$f":"Karaktersporing!C434&COUNTIF(Karaktersporing!$C$4:C434,Karaktersporing!C434)","v":"0"}]
[null,432,{"$f":"Karaktersporing!C435&COUNTIF(Karaktersporing!$C$4:C435,Karaktersporing!C435)","v":"0"}]
[null,433,{"$f":"Karaktersporing!C436&COUNTIF(Karaktersporing!$C$4:C436,Karaktersporing!C436)","v":"0"}]
[null,434,{"$f":"Karaktersporing!C437&COUNTIF(Karaktersporing!$C$4:C437,Karaktersporing!C437)","v":"0"}]
[null,435,{"$f":"Karaktersporing!C438&COUNTIF(Karaktersporing!$C$4:C438,Karaktersporing!C438)","v":"0"}]
[null,436,{"$f":"Karaktersporing!C439&COUNTIF(Karaktersporing!$C$4:C439,Karaktersporing!C439)","v":"0"}]
[null,437,{"$f":"Karaktersporing!C440&COUNTIF(Karaktersporing!$C$4:C440,Karaktersporing!C440)","v":"0"}]
[null,438,{"$f":"Karaktersporing!C441&COUNTIF(Karaktersporing!$C$4:C441,Karaktersporing!C441)","v":"0"}]
[null,439,{"$f":"Karaktersporing!C442&COUNTIF(Karaktersporing!$C$4:C442,Karaktersporing!C442)","v":"0"}]
[null,440,{"$f":"Karaktersporing!C443&COUNTIF(Karaktersporing!$C$4:C443,Karaktersporing!C443)","v":"0"}]
[null,441,{"$f":"Karaktersporing!C444&COUNTIF(Karaktersporing!$C$4:C444,Karaktersporing!C444)","v":"0"}]
[null,442,{"$f":"Karaktersporing!C445&COUNTIF(Karaktersporing!$C$4:C445,Karaktersporing!C445)","v":"0"}]
[null,443,{"$f":"Karaktersporing!C446&COUNTIF(Karaktersporing!$C$4:C446,Karaktersporing!C446)","v":"0"}]
[null,444,{"$f":"Karaktersporing!C447&COUNTIF(Karaktersporing!$C$4:C447,Karaktersporing!C447)","v":"0"}]
[null,445,{"$f":"Karaktersporing!C448&COUNTIF(Karaktersporing!$C$4:C448,Karaktersporing!C448)","v":"0"}]
[null,446,{"$f":"Karaktersporing!C449&COUNTIF(Karaktersporing!$C$4:C449,Karaktersporing!C449)","v":"0"}]
[null,447,{"$f":"Karaktersporing!C450&COUNTIF(Karaktersporing!$C$4:C450,Karaktersporing!C450)","v":"0"}]
[null,448,{"$f":"Karaktersporing!C451&COUNTIF(Karaktersporing!$C$4:C451,Karaktersporing!C451)","v":"0"}]
[null,449,{"$f":"Karaktersporing!C452&COUNTIF(Karaktersporing!$C$4:C452,Karaktersporing!C452)","v":"0"}]
[null,450,{"$f":"Karaktersporing!C453&COUNTIF(Karaktersporing!$C$4:C453,Karaktersporing!C453)","v":"0"}]
[null,451,{"$f":"Karaktersporing!C454&COUNTIF(Karaktersporing!$C$4:C454,Karaktersporing!C454)","v":"0"}]
[null,452,{"$f":"Karaktersporing!C455&COUNTIF(Karaktersporing!$C$4:C455,Karaktersporing!C455)","v":"0"}]
[null,453,{"$f":"Karaktersporing!C456&COUNTIF(Karaktersporing!$C$4:C456,Karaktersporing!C456)","v":"0"}]
[null,454,{"$f":"Karaktersporing!C457&COUNTIF(Karaktersporing!$C$4:C457,Karaktersporing!C457)","v":"0"}]
[null,455,{"$f":"Karaktersporing!C458&COUNTIF(Karaktersporing!$C$4:C458,Karaktersporing!C458)","v":"0"}]
[null,456,{"$f":"Karaktersporing!C459&COUNTIF(Karaktersporing!$C$4:C459,Karaktersporing!C459)","v":"0"}]
[null,457,{"$f":"Karaktersporing!C460&COUNTIF(Karaktersporing!$C$4:C460,Karaktersporing!C460)","v":"0"}]
[null,458,{"$f":"Karaktersporing!C461&COUNTIF(Karaktersporing!$C$4:C461,Karaktersporing!C461)","v":"0"}]
[null,459,{"$f":"Karaktersporing!C462&COUNTIF(Karaktersporing!$C$4:C462,Karaktersporing!C462)","v":"0"}]
[null,460,{"$f":"Karaktersporing!C463&COUNTIF(Karaktersporing!$C$4:C463,Karaktersporing!C463)","v":"0"}]
[null,461,{"$f":"Karaktersporing!C464&COUNTIF(Karaktersporing!$C$4:C464,Karaktersporing!C464)","v":"0"}]
[null,462,{"$f":"Karaktersporing!C465&COUNTIF(Karaktersporing!$C$4:C465,Karaktersporing!C465)","v":"0"}]
[null,463,{"$f":"Karaktersporing!C466&COUNTIF(Karaktersporing!$C$4:C466,Karaktersporing!C466)","v":"0"}]
[null,464,{"$f":"Karaktersporing!C467&COUNTIF(Karaktersporing!$C$4:C467,Karaktersporing!C467)","v":"0"}]
[null,465,{"$f":"Karaktersporing!C468&COUNTIF(Karaktersporing!$C$4:C468,Karaktersporing!C468)","v":"0"}]
[null,466,{"$f":"Karaktersporing!C469&COUNTIF(Karaktersporing!$C$4:C469,Karaktersporing!C469)","v":"0"}]
[null,467,{"$f":"Karaktersporing!C470&COUNTIF(Karaktersporing!$C$4:C470,Karaktersporing!C470)","v":"0"}]
[null,468,{"$f":"Karaktersporing!C471&COUNTIF(Karaktersporing!$C$4:C471,Karaktersporing!C471)","v":"0"}]
[null,469,{"$f":"Karaktersporing!C472&COUNTIF(Karaktersporing!$C$4:C472,Karaktersporing!C472)","v":"0"}]
[null,470,{"$f":"Karaktersporing!C473&COUNTIF(Karaktersporing!$C$4:C473,Karaktersporing!C473)","v":"0"}]
[null,471,{"$f":"Karaktersporing!C474&COUNTIF(Karaktersporing!$C$4:C474,Karaktersporing!C474)","v":"0"}]
[null,472,{"$f":"Karaktersporing!C475&COUNTIF(Karaktersporing!$C$4:C475,Karaktersporing!C475)","v":"0"}]
[null,473,{"$f":"Karaktersporing!C476&COUNTIF(Karaktersporing!$C$4:C476,Karaktersporing!C476)","v":"0"}]
[null,474,{"$f":"Karaktersporing!C477&COUNTIF(Karaktersporing!$C$4:C477,Karaktersporing!C477)","v":"0"}]
[null,475,{"$f":"Karaktersporing!C478&COUNTIF(Karaktersporing!$C$4:C478,Karaktersporing!C478)","v":"0"}]
[null,476,{"$f":"Karaktersporing!C479&COUNTIF(Karaktersporing!$C$4:C479,Karaktersporing!C479)","v":"0"}]
[null,477,{"$f":"Karaktersporing!C480&COUNTIF(Karaktersporing!$C$4:C480,Karaktersporing!C480)","v":"0"}]
[null,478,{"$f":"Karaktersporing!C481&COUNTIF(Karaktersporing!$C$4:C481,Karaktersporing!C481)","v":"0"}]
[null,479,{"$f":"Karaktersporing!C482&COUNTIF(Karaktersporing!$C$4:C482,Karaktersporing!C482)","v":"0"}]
[null,480,{"$f":"Karaktersporing!C483&COUNTIF(Karaktersporing!$C$4:C483,Karaktersporing!C483)","v":"0"}]
[null,481,{"$f":"Karaktersporing!C484&COUNTIF(Karaktersporing!$C$4:C484,Karaktersporing!C484)","v":"0"}]
[null,482,{"$f":"Karaktersporing!C485&COUNTIF(Karaktersporing!$C$4:C485,Karaktersporing!C485)","v":"0"}]
[null,483,{"$f":"Karaktersporing!C486&COUNTIF(Karaktersporing!$C$4:C486,Karaktersporing!C486)","v":"0"}]
[null,484,{"$f":"Karaktersporing!C487&COUNTIF(Karaktersporing!$C$4:C487,Karaktersporing!C487)","v":"0"}]
[null,485,{"$f":"Karaktersporing!C488&COUNTIF(Karaktersporing!$C$4:C488,Karaktersporing!C488)","v":"0"}]
[null,486,{"$f":"Karaktersporing!C489&COUNTIF(Karaktersporing!$C$4:C489,Karaktersporing!C489)","v":"0"}]
[null,487,{"$f":"Karaktersporing!C490&COUNTIF(Karaktersporing!$C$4:C490,Karaktersporing!C490)","v":"0"}]
[null,488,{"$f":"Karaktersporing!C491&COUNTIF(Karaktersporing!$C$4:C491,Karaktersporing!C491)","v":"0"}]
[null,489,{"$f":"Karaktersporing!C492&COUNTIF(Karaktersporing!$C$4:C492,Karaktersporing!C492)","v":"0"}]
[null,490,{"$f":"Karaktersporing!C493&COUNTIF(Karaktersporing!$C$4:C493,Karaktersporing!C493)","v":"0"}]
[null,491,{"$f":"Karaktersporing!C494&COUNTIF(Karaktersporing!$C$4:C494,Karaktersporing!C494)","v":"0"}]
[null,492,{"$f":"Karaktersporing!C495&COUNTIF(Karaktersporing!$C$4:C495,Karaktersporing!C495)","v":"0"}]
[null,493,{"$f":"Karaktersporing!C496&COUNTIF(Karaktersporing!$C$4:C496,Karaktersporing!C496)","v":"0"}]
[null,494,{"$f":"Karaktersporing!C497&COUNTIF(Karaktersporing!$C$4:C497,Karaktersporing!C497)","v":"0"}]
[null,495,{"$f":"Karaktersporing!C498&COUNTIF(Karaktersporing!$C$4:C498,Karaktersporing!C498)","v":"0"}]
[null,496,{"$f":"Karaktersporing!C499&COUNTIF(Karaktersporing!$C$4:C499,Karaktersporing!C499)","v":"0"}]
[null,497,{"$f":"Karaktersporing!C500&COUNTIF(Karaktersporing!$C$4:C500,Karaktersporing!C500)","v":"0"}]
[null,498,{"$f":"Karaktersporing!C501&COUNTIF(Karaktersporing!$C$4:C501,Karaktersporing!C501)","v":"0"}]
[null,499,{"$f":"Karaktersporing!C502&COUNTIF(Karaktersporing!$C$4:C502,Karaktersporing!C502)","v":"0"}]
[null,500,{"$f":"Karaktersporing!C503&COUNTIF(Karaktersporing!$C$4:C503,Karaktersporing!C503)","v":"0"}]
[null,501,{"$f":"Karaktersporing!C504&COUNTIF(Karaktersporing!$C$4:C504,Karaktersporing!C504)","v":"0"}]
[null,502,{"$f":"Karaktersporing!C505&COUNTIF(Karaktersporing!$C$4:C505,Karaktersporing!C505)","v":"0"}]
[null,503,{"$f":"Karaktersporing!C506&COUNTIF(Karaktersporing!$C$4:C506,Karaktersporing!C506)","v":"0"}]
[null,504,{"$f":"Karaktersporing!C507&COUNTIF(Karaktersporing!$C$4:C507,Karaktersporing!C507)","v":"0"}]
[null,505,{"$f":"Karaktersporing!C508&COUNTIF(Karaktersporing!$C$4:C508,Karaktersporing!C508)","v":"0"}]
[null,506,{"$f":"Karaktersporing!C509&COUNTIF(Karaktersporing!$C$4:C509,Karaktersporing!C509)","v":"0"}]
[null,507,{"$f":"Karaktersporing!C510&COUNTIF(Karaktersporing!$C$4:C510,Karaktersporing!C510)","v":"0"}]
[null,508,{"$f":"Karaktersporing!C511&COUNTIF(Karaktersporing!$C$4:C511,Karaktersporing!C511)","v":"0"}]
[null,509,{"$f":"Karaktersporing!C512&COUNTIF(Karaktersporing!$C$4:C512,Karaktersporing!C512)","v":"0"}]
[null,510,{"$f":"Karaktersporing!C513&COUNTIF(Karaktersporing!$C$4:C513,Karaktersporing!C513)","v":"0"}]
[null,511,{"$f":"Karaktersporing!C514&COUNTIF(Karaktersporing!$C$4:C514,Karaktersporing!C514)","v":"0"}]
[null,512,{"$f":"Karaktersporing!C515&COUNTIF(Karaktersporing!$C$4:C515,Karaktersporing!C515)","v":"0"}]
[null,513,{"$f":"Karaktersporing!C516&COUNTIF(Karaktersporing!$C$4:C516,Karaktersporing!C516)","v":"0"}]
[null,514,{"$f":"Karaktersporing!C517&COUNTIF(Karaktersporing!$C$4:C517,Karaktersporing!C517)","v":"0"}]
[null,515,{"$f":"Karaktersporing!C518&COUNTIF(Karaktersporing!$C$4:C518,Karaktersporing!C518)","v":"0"}]
[null,516,{"$f":"Karaktersporing!C519&COUNTIF(Karaktersporing!$C$4:C519,Karaktersporing!C519)","v":"0"}]
[null,517,{"$f":"Karaktersporing!C520&COUNTIF(Karaktersporing!$C$4:C520,Karaktersporing!C520)","v":"0"}]
[null,518,{"$f":"Karaktersporing!C521&COUNTIF(Karaktersporing!$C$4:C521,Karaktersporing!C521)","v":"0"}]
[null,519,{"$f":"Karaktersporing!C522&COUNTIF(Karaktersporing!$C$4:C522,Karaktersporing!C522)","v":"0"}]
[null,520,{"$f":"Karaktersporing!C523&COUNTIF(Karaktersporing!$C$4:C523,Karaktersporing!C523)","v":"0"}]
[null,521,{"$f":"Karaktersporing!C524&COUNTIF(Karaktersporing!$C$4:C524,Karaktersporing!C524)","v":"0"}]
[null,522,{"$f":"Karaktersporing!C525&COUNTIF(Karaktersporing!$C$4:C525,Karaktersporing!C525)","v":"0"}]
[null,523,{"$f":"Karaktersporing!C526&COUNTIF(Karaktersporing!$C$4:C526,Karaktersporing!C526)","v":"0"}]
[null,524,{"$f":"Karaktersporing!C527&COUNTIF(Karaktersporing!$C$4:C527,Karaktersporing!C527)","v":"0"}]
[null,525,{"$f":"Karaktersporing!C528&COUNTIF(Karaktersporing!$C$4:C528,Karaktersporing!C528)","v":"0"}]
[null,526,{"$f":"Karaktersporing!C529&COUNTIF(Karaktersporing!$C$4:C529,Karaktersporing!C529)","v":"0"}]
[null,527,{"$f":"Karaktersporing!C530&COUNTIF(Karaktersporing!$C$4:C530,Karaktersporing!C530)","v":"0"}]
[null,528,{"$f":"Karaktersporing!C531&COUNTIF(Karaktersporing!$C$4:C531,Karaktersporing!C531)","v":"0"}]
[null,529,{"$f":"Karaktersporing!C532&COUNTIF(Karaktersporing!$C$4:C532,Karaktersporing!C532)","v":"0"}]
[null,530,{"$f":"Karaktersporing!C533&COUNTIF(Karaktersporing!$C$4:C533,Karaktersporing!C533)","v":"0"}]
[null,531,{"$f":"Karaktersporing!C534&COUNTIF(Karaktersporing!$C$4:C534,Karaktersporing!C534)","v":"0"}]
[null,532,{"$f":"Karaktersporing!C535&COUNTIF(Karaktersporing!$C$4:C535,Karaktersporing!C535)","v":"0"}]
[null,533,{"$f":"Karaktersporing!C536&COUNTIF(Karaktersporing!$C$4:C536,Karaktersporing!C536)","v":"0"}]
[null,534,{"$f":"Karaktersporing!C537&COUNTIF(Karaktersporing!$C$4:C537,Karaktersporing!C537)","v":"0"}]
[null,535,{"$f":"Karaktersporing!C538&COUNTIF(Karaktersporing!$C$4:C538,Karaktersporing!C538)","v":"0"}]
[null,536,{"$f":"Karaktersporing!C539&COUNTIF(Karaktersporing!$C$4:C539,Karaktersporing!C539)","v":"0"}]
[null,537,{"$f":"Karaktersporing!C540&COUNTIF(Karaktersporing!$C$4:C540,Karaktersporing!C540)","v":"0"}]
[null,538,{"$f":"Karaktersporing!C541&COUNTIF(Karaktersporing!$C$4:C541,Karaktersporing!C541)","v":"0"}]
[null,539,{"$f":"Karaktersporing!C542&COUNTIF(Karaktersporing!$C$4:C542,Karaktersporing!C542)","v":"0"}]
[null,540,{"$f":"Karaktersporing!C543&COUNTIF(Karaktersporing!$C$4:C543,Karaktersporing!C543)","v":"0"}]
[null,541,{"$f":"Karaktersporing!C544&COUNTIF(Karaktersporing!$C$4:C544,Karaktersporing!C544)","v":"0"}]
[null,542,{"$f":"Karaktersporing!C545&COUNTIF(Karaktersporing!$C$4:C545,Karaktersporing!C545)","v":"0"}]
[null,543,{"$f":"Karaktersporing!C546&COUNTIF(Karaktersporing!$C$4:C546,Karaktersporing!C546)","v":"0"}]
[null,544,{"$f":"Karaktersporing!C547&COUNTIF(Karaktersporing!$C$4:C547,Karaktersporing!C547)","v":"0"}]
[null,545,{"$f":"Karaktersporing!C548&COUNTIF(Karaktersporing!$C$4:C548,Karaktersporing!C548)","v":"0"}]
[null,546,{"$f":"Karaktersporing!C549&COUNTIF(Karaktersporing!$C$4:C549,Karaktersporing!C549)","v":"0"}]
[null,547,{"$f":"Karaktersporing!C550&COUNTIF(Karaktersporing!$C$4:C550,Karaktersporing!C550)","v":"0"}]
[null,548,{"$f":"Karaktersporing!C551&COUNTIF(Karaktersporing!$C$4:C551,Karaktersporing!C551)","v":"0"}]
[null,549,{"$f":"Karaktersporing!C552&COUNTIF(Karaktersporing!$C$4:C552,Karaktersporing!C552)","v":"0"}]
[null,550,{"$f":"Karaktersporing!C553&COUNTIF(Karaktersporing!$C$4:C553,Karaktersporing!C553)","v":"0"}]
[null,551,{"$f":"Karaktersporing!C554&COUNTIF(Karaktersporing!$C$4:C554,Karaktersporing!C554)","v":"0"}]
[null,552,{"$f":"Karaktersporing!C555&COUNTIF(Karaktersporing!$C$4:C555,Karaktersporing!C555)","v":"0"}]
[null,553,{"$f":"Karaktersporing!C556&COUNTIF(Karaktersporing!$C$4:C556,Karaktersporing!C556)","v":"0"}]
[null,554,{"$f":"Karaktersporing!C557&COUNTIF(Karaktersporing!$C$4:C557,Karaktersporing!C557)","v":"0"}]
[null,555,{"$f":"Karaktersporing!C558&COUNTIF(Karaktersporing!$C$4:C558,Karaktersporing!C558)","v":"0"}]
[null,556,{"$f":"Karaktersporing!C559&COUNTIF(Karaktersporing!$C$4:C559,Karaktersporing!C559)","v":"0"}]
[null,557,{"$f":"Karaktersporing!C560&COUNTIF(Karaktersporing!$C$4:C560,Karaktersporing!C560)","v":"0"}]
[null,558,{"$f":"Karaktersporing!C561&COUNTIF(Karaktersporing!$C$4:C561,Karaktersporing!C561)","v":"0"}]
[null,559,{"$f":"Karaktersporing!C562&COUNTIF(Karaktersporing!$C$4:C562,Karaktersporing!C562)","v":"0"}]
[null,560,{"$f":"Karaktersporing!C563&COUNTIF(Karaktersporing!$C$4:C563,Karaktersporing!C563)","v":"0"}]
[null,561,{"$f":"Karaktersporing!C564&COUNTIF(Karaktersporing!$C$4:C564,Karaktersporing!C564)","v":"0"}]
[null,562,{"$f":"Karaktersporing!C565&COUNTIF(Karaktersporing!$C$4:C565,Karaktersporing!C565)","v":"0"}]
[null,563,{"$f":"Karaktersporing!C566&COUNTIF(Karaktersporing!$C$4:C566,Karaktersporing!C566)","v":"0"}]
[null,564,{"$f":"Karaktersporing!C567&COUNTIF(Karaktersporing!$C$4:C567,Karaktersporing!C567)","v":"0"}]
[null,565,{"$f":"Karaktersporing!C568&COUNTIF(Karaktersporing!$C$4:C568,Karaktersporing!C568)","v":"0"}]
[null,566,{"$f":"Karaktersporing!C569&COUNTIF(Karaktersporing!$C$4:C569,Karaktersporing!C569)","v":"0"}]
[null,567,{"$f":"Karaktersporing!C570&COUNTIF(Karaktersporing!$C$4:C570,Karaktersporing!C570)","v":"0"}]
[null,568,{"$f":"Karaktersporing!C571&COUNTIF(Karaktersporing!$C$4:C571,Karaktersporing!C571)","v":"0"}]
[null,569,{"$f":"Karaktersporing!C572&COUNTIF(Karaktersporing!$C$4:C572,Karaktersporing!C572)","v":"0"}]
[null,570,{"$f":"Karaktersporing!C573&COUNTIF(Karaktersporing!$C$4:C573,Karaktersporing!C573)","v":"0"}]
[null,571,{"$f":"Karaktersporing!C574&COUNTIF(Karaktersporing!$C$4:C574,Karaktersporing!C574)","v":"0"}]
[null,572,{"$f":"Karaktersporing!C575&COUNTIF(Karaktersporing!$C$4:C575,Karaktersporing!C575)","v":"0"}]
[null,573,{"$f":"Karaktersporing!C576&COUNTIF(Karaktersporing!$C$4:C576,Karaktersporing!C576)","v":"0"}]
[null,574,{"$f":"Karaktersporing!C577&COUNTIF(Karaktersporing!$C$4:C577,Karaktersporing!C577)","v":"0"}]
[null,575,{"$f":"Karaktersporing!C578&COUNTIF(Karaktersporing!$C$4:C578,Karaktersporing!C578)","v":"0"}]
[null,576,{"$f":"Karaktersporing!C579&COUNTIF(Karaktersporing!$C$4:C579,Karaktersporing!C579)","v":"0"}]
[null,577,{"$f":"Karaktersporing!C580&COUNTIF(Karaktersporing!$C$4:C580,Karaktersporing!C580)","v":"0"}]
[null,578,{"$f":"Karaktersporing!C581&COUNTIF(Karaktersporing!$C$4:C581,Karaktersporing!C581)","v":"0"}]
[null,579,{"$f":"Karaktersporing!C582&COUNTIF(Karaktersporing!$C$4:C582,Karaktersporing!C582)","v":"0"}]
[null,580,{"$f":"Karaktersporing!C583&COUNTIF(Karaktersporing!$C$4:C583,Karaktersporing!C583)","v":"0"}]
[null,581,{"$f":"Karaktersporing!C584&COUNTIF(Karaktersporing!$C$4:C584,Karaktersporing!C584)","v":"0"}]
[null,582,{"$f":"Karaktersporing!C585&COUNTIF(Karaktersporing!$C$4:C585,Karaktersporing!C585)","v":"0"}]
[null,583,{"$f":"Karaktersporing!C586&COUNTIF(Karaktersporing!$C$4:C586,Karaktersporing!C586)","v":"0"}]
[null,584,{"$f":"Karaktersporing!C587&COUNTIF(Karaktersporing!$C$4:C587,Karaktersporing!C587)","v":"0"}]
[null,585,{"$f":"Karaktersporing!C588&COUNTIF(Karaktersporing!$C$4:C588,Karaktersporing!C588)","v":"0"}]
[null,586,{"$f":"Karaktersporing!C589&COUNTIF(Karaktersporing!$C$4:C589,Karaktersporing!C589)","v":"0"}]
[null,587,{"$f":"Karaktersporing!C590&COUNTIF(Karaktersporing!$C$4:C590,Karaktersporing!C590)","v":"0"}]
[null,588,{"$f":"Karaktersporing!C591&COUNTIF(Karaktersporing!$C$4:C591,Karaktersporing!C591)","v":"0"}]
[null,589,{"$f":"Karaktersporing!C592&COUNTIF(Karaktersporing!$C$4:C592,Karaktersporing!C592)","v":"0"}]
[null,590,{"$f":"Karaktersporing!C593&COUNTIF(Karaktersporing!$C$4:C593,Karaktersporing!C593)","v":"0"}]
[null,591,{"$f":"Karaktersporing!C594&COUNTIF(Karaktersporing!$C$4:C594,Karaktersporing!C594)","v":"0"}]
[null,592,{"$f":"Karaktersporing!C595&COUNTIF(Karaktersporing!$C$4:C595,Karaktersporing!C595)","v":"0"}]
[null,593,{"$f":"Karaktersporing!C596&COUNTIF(Karaktersporing!$C$4:C596,Karaktersporing!C596)","v":"0"}]
[null,594,{"$f":"Karaktersporing!C597&COUNTIF(Karaktersporing!$C$4:C597,Karaktersporing!C597)","v":"0"}]
[null,595,{"$f":"Karaktersporing!C598&COUNTIF(Karaktersporing!$C$4:C598,Karaktersporing!C598)","v":"0"}]
[null,596,{"$f":"Karaktersporing!C599&COUNTIF(Karaktersporing!$C$4:C599,Karaktersporing!C599)","v":"0"}]
[null,597,{"$f":"Karaktersporing!C600&COUNTIF(Karaktersporing!$C$4:C600,Karaktersporing!C600)","v":"0"}]
[null,598,{"$f":"Karaktersporing!C601&COUNTIF(Karaktersporing!$C$4:C601,Karaktersporing!C601)","v":"0"}]
[null,599,{"$f":"Karaktersporing!C602&COUNTIF(Karaktersporing!$C$4:C602,Karaktersporing!C602)","v":"0"}]
[null,600,{"$f":"Karaktersporing!C603&COUNTIF(Karaktersporing!$C$4:C603,Karaktersporing!C603)","v":"0"}]
[null,601,{"$f":"Karaktersporing!C604&COUNTIF(Karaktersporing!$C$4:C604,Karaktersporing!C604)","v":"0"}]
[null,602,{"$f":"Karaktersporing!C605&COUNTIF(Karaktersporing!$C$4:C605,Karaktersporing!C605)","v":"0"}]
[null,603,{"$f":"Karaktersporing!C606&COUNTIF(Karaktersporing!$C$4:C606,Karaktersporing!C606)","v":"0"}]
[null,604,{"$f":"Karaktersporing!C607&COUNTIF(Karaktersporing!$C$4:C607,Karaktersporing!C607)","v":"0"}]
[null,605,{"$f":"Karaktersporing!C608&COUNTIF(Karaktersporing!$C$4:C608,Karaktersporing!C608)","v":"0"}]
[null,606,{"$f":"Karaktersporing!C609&COUNTIF(Karaktersporing!$C$4:C609,Karaktersporing!C609)","v":"0"}]
[null,607,{"$f":"Karaktersporing!C610&COUNTIF(Karaktersporing!$C$4:C610,Karaktersporing!C610)","v":"0"}]
[null,608,{"$f":"Karaktersporing!C611&COUNTIF(Karaktersporing!$C$4:C611,Karaktersporing!C611)","v":"0"}]
[null,609,{"$f":"Karaktersporing!C612&COUNTIF(Karaktersporing!$C$4:C612,Karaktersporing!C612)","v":"0"}]
[null,610,{"$f":"Karaktersporing!C613&COUNTIF(Karaktersporing!$C$4:C613,Karaktersporing!C613)","v":"0"}]
[null,611,{"$f":"Karaktersporing!C614&COUNTIF(Karaktersporing!$C$4:C614,Karaktersporing!C614)","v":"0"}]
[null,612,{"$f":"Karaktersporing!C615&COUNTIF(Karaktersporing!$C$4:C615,Karaktersporing!C615)","v":"0"}]
[null,613,{"$f":"Karaktersporing!C616&COUNTIF(Karaktersporing!$C$4:C616,Karaktersporing!C616)","v":"0"}]
[null,614,{"$f":"Karaktersporing!C617&COUNTIF(Karaktersporing!$C$4:C617,Karaktersporing!C617)","v":"0"}]
[null,615,{"$f":"Karaktersporing!C618&COUNTIF(Karaktersporing!$C$4:C618,Karaktersporing!C618)","v":"0"}]
[null,616,{"$f":"Karaktersporing!C619&COUNTIF(Karaktersporing!$C$4:C619,Karaktersporing!C619)","v":"0"}]
[null,617,{"$f":"Karaktersporing!C620&COUNTIF(Karaktersporing!$C$4:C620,Karaktersporing!C620)","v":"0"}]
[null,618,{"$f":"Karaktersporing!C621&COUNTIF(Karaktersporing!$C$4:C621,Karaktersporing!C621)","v":"0"}]
[null,619,{"$f":"Karaktersporing!C622&COUNTIF(Karaktersporing!$C$4:C622,Karaktersporing!C622)","v":"0"}]
[null,620,{"$f":"Karaktersporing!C623&COUNTIF(Karaktersporing!$C$4:C623,Karaktersporing!C623)","v":"0"}]
[null,621,{"$f":"Karaktersporing!C624&COUNTIF(Karaktersporing!$C$4:C624,Karaktersporing!C624)","v":"0"}]
[null,622,{"$f":"Karaktersporing!C625&COUNTIF(Karaktersporing!$C$4:C625,Karaktersporing!C625)","v":"0"}]
[null,623,{"$f":"Karaktersporing!C626&COUNTIF(Karaktersporing!$C$4:C626,Karaktersporing!C626)","v":"0"}]
[null,624,{"$f":"Karaktersporing!C627&COUNTIF(Karaktersporing!$C$4:C627,Karaktersporing!C627)","v":"0"}]
[null,625,{"$f":"Karaktersporing!C628&COUNTIF(Karaktersporing!$C$4:C628,Karaktersporing!C628)","v":"0"}]